Cogmind - Beta 17 @@@ ROGUE MODE // 2026.06.23 @ 18:49:55 Player: Dosh Result: Escaped! Performance ------------- Evolutions (9) 4500 Regions Visited (27) 5400 Robots Destroyed (439) 2195 Value Destroyed (29911) 29911 Prototype IDs (61) 1220 Alien Tech Used (1) 200 Bonus (46057) 46057 TOTAL SCORE: 89483 Bonus ------- Triggered High Security 500 High Alert Combat Kills 5770 Follower Combat Kills 12806 Prayed to X0-1V1 5000 Major X0-1V1 Interference 11100 Entered Garrisons 2200 Used RIF Installer 6000 Win 3000 Friendly Fire -319 Cogmind --------- Core Integrity 289/1325 Matter 174/500 Energy 298/300 System Corruption 15% Temperature Cool (0) Movement Core (50) Location To Epsilon Eridani Parts ------- > --- POWER (5) -------- (None) > --- PROPULSION (6) --- Armored Heavy Treads Armored Heavy Treads Armored Heavy Treads > --- UTILITY (12) ----- Authchip [R/NC] Relay Coupler [NC] (5) Relay Coupler [Behemoth] (99) > --- WEAPON (2) ------- (None) > --- INVENTORY (5) ---- Armored Heavy Treads Potential Cannon Hardcell Cannon Peak State ------------ > --- POWER ------------ Quantum Reactor Quantum Reactor Light Quantum Reactor Reinforced Quantum Reactor > --- PROPULSION ------- Medium Treads Centrium Heavy Treads Biometal Heavy Treads > --- UTILITY ---------- 2N-1CE's Frost Array Huge Storage Unit Experimental Core Analyzer Quantum Capacitor SHELL Armor Relay Coupler [Grunt] Relay Coupler [Sentry] Relay Coupler [Behemoth] X0-1V1's Piety Tracker > --- WEAPON ----------- Precision Phase Gun Heavy Neutron Cannon Advanced Remote Datajack Advanced Remote Datajack > --- INVENTORY -------- Protomatter Light Quantum Reactor Light Quantum Reactor Armored Heavy Treads Biometal Heavy Treads Advanced Coolant Injector Experimental Energy Well Advanced Force Field Advanced Force Field Relay Coupler [NC] Relay Coupler [NC] Relay Coupler [NC] Relay Coupler [Swarmer] Relay Coupler [Grunt] Relay Coupler [Sentry] Relay Coupler [Sentry] Relay Coupler [Sentry] Relay Coupler [Proto] Enhanced Nova Cannon Potential Cannon Mini Smartbomb Launcher [Rating: 215] Favorites ----------- Power Particle Reactor Engine Light Ion Engine Power Core Light Nuclear Core Reactor Particle Reactor Propulsion Biometal Heavy Treads Treads Biometal Heavy Treads Leg Enhanced Biometal Leg Flight Unit Xenon Bombardment Thruster Utility X0-1V1's Piety Tracker Device X0-1V1's Piety Tracker Storage Huge Storage Unit Processor Experimental Targeting Computer Hackware Relay Coupler [Grunt] Protection SHELL Armor Weapon Enhanced Nova Cannon Energy Gun Precision Phase Gun Energy Cannon Enhanced Nova Cannon Ballistic Gun Improved Heavy Machine Gun Ballistic Cannon Improved Light Cannon Launcher Subdweller Shrapnel Launcher Special Weapon Remote Datajack Slashing Weapon Great Axe Build | -11 -10 -10 -8 -8 -8 -8 -7 -7 -7 -7 -7 -7 -6 -6 -5 -5 -4 -4 -4 -4 -3 -3 -2 -2 -2 -2 -1 ------- Run | Yrd Mat Sub Mat Gar Mat Gar Fac Gar Fac Gar Fac Gar Fac Gar Fac Gar Fac Gar Fac Gar Res Tes Res Gar Res Gar Acc Slots Evolved 18 | . . . 4 . . . 2 . . . . . 2 . 2 . 2 . . . 2 . 2 . . . 2 Power 3 | . . . . . . . . . . . . . . . 1 . . . . . 1 . . . . . 1 Propulsion 4 | . . . 2 . . . . . . . . . . . . . . . . . . . 1 . . . 1 Utility 10 | . . . 1 . . . 2 . . . . . 2 . 1 . 2 . . . 1 . 1 . . . . Weapon 1 | . . . 1 . . . . . . . . . . . . . . . . . . . . . . . . Parts Attached 269 | 6 7 9 27 10 1 5 8 6 4 8 2 7 16 17 8 11 4 6 9 1 8 18 18 11 22 4 16 Power 40 | 1 . 2 1 4 . . . 1 . . . 1 . 2 2 3 . . . . 2 2 7 1 5 1 5 Engine 9 | 1 . 2 1 1 . . . . . . . . . 1 2 1 . . . . . . . . . . . Core 3 | . . . . 3 . . . . . . . . . . . . . . . . . . . . . . . Reactor 28 | . . . . . . . . 1 . . . 1 . 1 . 2 . . . . 2 2 7 1 5 1 5 Propulsion 56 | 2 . 1 7 . . . 4 2 1 2 . 1 3 5 1 5 1 . . . 1 4 3 1 5 . 7 Treads 38 | 2 . 1 3 . . . 4 2 1 2 . 1 2 . . 4 1 . . . 1 1 2 1 5 . 5 Leg 16 | . . . 4 . . . . . . . . . 1 5 1 1 . . . . . 3 1 . . . . Wheel . | . . . . . . . . . . . . . . . . . . . . . . . . . . . . Hover . | . . . . . . . . . . . . . . . . . . . . . . . . . . . . Flight 2 | . . . . . . . . . . . . . . . . . . . . . . . . . . . 2 Utility 111 | 1 5 2 12 2 1 3 4 2 2 2 2 4 6 6 4 3 3 3 8 1 3 7 7 5 6 3 4 Device 38 | . 2 1 8 1 1 1 2 . 1 . 1 . 1 . 1 1 1 1 2 . 1 2 3 2 2 2 1 Storage 6 | 1 3 . . 1 . . . . . . . . . . . . . . . . . 1 . . . . . Processor 2 | . . . . . . . . . . . . . . . . . 1 . . . . . 1 . . . . Hackware 56 | . . . 1 . . 1 2 2 1 2 1 3 5 5 3 2 1 2 6 1 2 2 3 3 4 1 3 Protection 9 | . . 1 3 . . 1 . . . . . 1 . 1 . . . . . . . 2 . . . . . Artifact . | . . . . . . . . . . . . . . . . . . . . . . . . . . . . Weapon 62 | 2 2 4 7 4 . 2 . 1 1 4 . 1 7 4 1 . . 3 1 . 2 5 1 4 6 . . Energy Gun 2 | . . . . . . . . . . . . . 1 . . . . . . . . . . 1 . . . Energy Cannon 19 | . . . 3 2 . . . . 1 1 . . 1 . . . . 3 . . . 4 . 1 3 . . Ballistic Gun 12 | 2 . 1 2 . . . . . . . . . 4 2 1 . . . . . . . . . . . . Ballistic Cannon 5 | . 2 1 1 . . . . 1 . . . . . . . . . . . . . . . . . . . Launcher 5 | . . 2 . 1 . 1 . . . . . . . . . . . . . . . 1 . . . . . Special Weapon 18 | . . . 1 . . 1 . . . 3 . 1 1 2 . . . . 1 . 2 . 1 2 3 . . Impact Weapon . | . . . . . . . . . . . . . . . . . . . . . . . . . . . . Slashing Weapon 1 | . . . . 1 . . . . . . . . . . . . . . . . . . . . . . . Piercing Weapon . | . . . . . . . . . . . . . . . . . . . . . . . . . . . . Special Melee Weapon . | . . . . . . . . . . . . . . . . . . . . . . . . . . . . Unidentified Prototypes 18 | . 1 . 2 . . 1 . . 1 . . . 1 . . . . . . . . 7 . . 4 1 . Corrupted Parts 1 | . . . . . . . . . . . . . . . . . . . . . 1 . . . . . . System Corruption 8 | . . . . . . . . . . . . . . . . . . . . . 8 . . . . . . Parts Lost 73 | . . 4 7 2 . 2 . . 1 . . 1 2 4 . 3 . . . . 3 6 1 1 6 4 26 Power 17 | . . 1 . 1 . . . . . . . . . 2 . . . . . . 1 1 . . 3 . 8 Propulsion 20 | . . 1 2 . . 1 . . . . . . 2 1 . . . . . . 1 1 . . 3 1 7 Utility 28 | . . 1 4 . . 1 . . 1 . . . . 1 . 1 . . . . 1 4 . 1 . 3 10 Weapon 8 | . . 1 1 1 . . . . . . . 1 . . . 2 . . . . . . 1 . . . 1 Highest Loss Streak 21 | . . 2 2 1 . 1 . . 1 . . 1 1 2 . 3 . . . . 1 3 1 1 2 2 21 To Critical Strikes 2 | . . . . . . . . . . . . . . . . . . . . . . . . . 1 . 1 Average Backups 19 | . 10 15 18 20 25 24 21 21 22 22 21 22 21 23 23 22 21 20 20 20 19 19 20 19 20 19 17 Power 1 | . 1 . . . . . 1 . 1 1 1 1 1 1 1 1 1 1 1 1 . 1 3 1 1 1 1 Propulsion 1 | . 1 2 3 4 4 5 2 1 2 2 2 1 . 1 2 1 1 1 1 1 1 1 1 2 1 1 1 Utility 10 | . 3 5 5 9 14 13 11 10 11 12 13 14 12 12 12 14 13 14 15 14 14 10 10 11 12 10 8 Weapon 4 | . 4 5 7 4 3 2 4 5 4 4 4 3 5 5 4 3 4 1 1 1 2 3 4 3 4 5 5 Tool/Special . | . . . . . . . . . . . . . . . . . . . . . . . . . . . . Unused Backups 77 | . 2 . 6 2 2 2 . 7 2 4 3 3 . 4 . 7 3 5 5 2 1 1 2 5 2 . 7 Power 4 | . . . . . . . . . 1 . . 1 . . . 1 . . . . . . 1 . . . . Propulsion 16 | . . . 1 . . 1 . 5 . . . . . 2 . 1 . 1 3 . . . 1 . . . 1 Utility 44 | . . . 4 1 2 . . 2 . 3 3 2 . 2 . 5 2 3 2 2 1 . . 4 2 . 4 Weapon 11 | . 2 . 1 1 . . . . 1 . . . . . . . 1 1 . . . 1 . 1 . . 2 Tool/Special 2 | . . . . . . 1 . . . 1 . . . . . . . . . . . . . . . . . Average Slot Usage (%) 85 | . 98 88 89 89 90 87 98 88 82 84 83 83 84 87 91 95 88 88 88 88 85 80 72 77 77 73 68 Engine 2 | . 14 13 8 2 . . . . . . . . . 2 8 2 . . . . . . . . . . . Reactor 7 | . . . . . . . . 6 7 7 7 7 6 3 . 8 10 10 10 10 12 13 13 16 16 17 16 Treads 15 | . 28 27 23 . . . 29 18 20 23 23 23 15 11 . 4 15 15 15 15 10 8 12 12 12 8 11 Leg 3 | . . . 5 25 25 24 . . . . . . 2 12 29 21 . . . . . 3 . . . . . Device 12 | . 13 6 15 16 16 14 13 13 7 7 7 7 11 6 7 17 21 21 14 10 10 18 13 12 9 11 10 Storage 6 | . 14 14 8 8 8 8 7 7 7 7 7 7 6 6 5 5 5 5 5 5 4 4 4 4 4 4 3 Processor 1 | . . . . . . . . . . . . . . . . . 5 5 5 5 4 4 5 4 4 1 . Hackware 14 | . . . 1 8 8 9 10 16 21 23 22 20 25 26 20 14 13 17 25 31 31 13 11 12 15 16 19 Protection 3 | . . 6 8 8 8 6 12 6 2 . . 1 1 2 5 5 5 3 1 . . 3 4 4 4 4 3 Energy Cannon 4 | . . . 10 12 16 12 7 7 7 8 7 11 2 . . . . 5 6 5 4 6 4 2 3 2 2 Ballistic Gun 1 | . 2 2 5 . . . 2 . . . . . 6 12 7 5 4 . . . . . . . . . . Ballistic Cannon 2 | . 25 10 1 . . . . . . . . . . . . . . . . . . . . . . . . Special Weapon 2 | . . . . . . . 3 2 3 1 7 1 2 1 2 4 5 4 3 4 3 1 3 3 4 2 1 Peak Build Rating 215 | 6 23 24 62 62 64 72 61 81 83 81 80 81 91 107 112 129 136 142 147 144 150 178 205 215 215 187 213 Average Rating 109 | 4 11 18 42 59 63 62 59 75 78 80 79 78 85 94 105 115 131 137 141 140 143 163 199 202 192 181 185 On Entrance 100 | . 6 23 16 59 62 64 52 58 81 80 80 80 78 91 96 111 120 135 136 133 141 150 178 204 215 187 180 Avg Prop Armor Cover (%) 10 | . . 10 . . . . . . . . . . 4 14 . . . . . . . 2 10 . . . 45 Naked Turns . | . . . . . . . . . . . . . . . . . . . . . . . . . . . . Heaviest Build 240 | 12 52 71 78 113 109 111 110 122 120 113 109 122 122 119 127 154 154 160 160 158 166 193 211 231 230 218 240 Greatest Support 230 | 40 40 40 87 87 87 87 104 150 170 170 170 170 180 180 128 173 165 165 165 165 165 163 230 230 183 178 215 Greatest Overweight (x) 3 | . 1 3 1 1 1 1 1 1 . . . . . 3 . 2 . . 1 . 1 1 1 1 1 1 1 Average Overweight (x) . | . . 1 . . 1 1 . . . . . . . . . . . . . . . . . . 1 1 . Largest Inventory Capacity 25 | 8 20 20 20 25 25 25 25 25 25 25 25 25 25 25 25 25 25 25 25 25 25 25 25 25 25 25 25 Average Capacity 23 | 6 17 20 20 20 25 25 25 25 25 25 25 25 25 25 25 25 25 25 25 25 25 25 25 25 25 25 23 Most Carried 25 | 1 12 20 20 25 25 25 25 25 25 25 25 25 25 25 25 25 25 25 25 25 25 25 25 25 25 25 24 Average Carried 21 | . 10 15 19 20 24 24 22 24 24 24 24 24 23 24 24 24 24 24 24 24 23 23 23 24 23 22 19 Final Capacity 25 | 8 20 20 20 25 25 25 25 25 25 25 25 25 25 25 25 25 25 25 25 25 25 25 25 25 25 25 5 Final Carried 25 | 1 12 19 20 25 25 25 23 25 25 25 25 25 25 25 24 24 24 25 24 25 25 25 24 25 25 22 5 Transmogrified Parts 3 | . . . . . . 3 . . . . . . . . . . . . . . . . . . . . . Integrity Recovered 108 | . . . . . . 108 . . . . . . . . . . . . . . . . . . . . . Class Distribution -------------------- 70% | Botlord-Mutant 19% | Mutant 3% | Bothacker-Mutant Dominant Class ---------------- Mutant | -10/Materials Mutant | -10/Subcaves Mutant | -8/Materials Mutant | -8/Garrison Bothacker-Mutant | -8/Materials Bothacker-Mutant | -8/Garrison Botlord-Mutant | -7/Factory Botlord-Mutant | -7/Garrison Botlord-Mutant | -7/Factory Botlord-Mutant | -7/Garrison Botlord-Mutant | -7/Factory Botlord-Mutant | -7/Garrison Botlord-Mutant | -6/Factory Botlord-Mutant | -6/Garrison Botlord-Mutant | -5/Factory Botlord-Mutant | -5/Garrison Botlord-Mutant | -4/Factory Botlord-Mutant | -4/Garrison Botlord-Mutant | -4/Factory Botlord-Mutant | -4/Garrison Botlord-Mutant | -3/Research Botlord-Mutant | -3/Testing Botlord-Mutant | -2/Research Botlord-Mutant | -2/Garrison Botlord-Mutant | -2/Research Botlord-Mutant | -2/Garrison Botlord-Mutant | -1/Access Resources | -11 -10 -10 -8 -8 -8 -8 -7 -7 -7 -7 -7 -7 -6 -6 -5 -5 -4 -4 -4 -4 -3 -3 -2 -2 -2 -2 -1 ----------- Run | Yrd Mat Sub Mat Gar Mat Gar Fac Gar Fac Gar Fac Gar Fac Gar Fac Gar Fac Gar Fac Gar Res Tes Res Gar Res Gar Acc Matter Collected 16826 | 216 534 587 1500 183 29 207 187 938 73 387 94 437 1004 1012 552 937 120 762 410 1040 641 927 629 779 1612 730 299 Remotely . | . . . . . . . . . . . . . . . . . . . . . . . . . . . . Salvage Created 20343 | . 530 96 1301 558 218 364 70 752 78 921 51 785 373 572 199 119 10 136 346 475 555 1952 2558 800 2879 1372 2273 Parts 1036 | . 44 12 74 38 19 21 3 36 4 35 4 57 22 35 8 11 2 5 19 23 38 114 90 28 139 69 86 Haulers Intercepted 7 | . 2 . 2 . 2 . . . . . . . . . . . . . . . . . . . 1 . . Recyclers Shooed 11 | . 4 . . . . . . . . . . . 1 . . . 1 . 2 . 1 1 . . . . 1 Parts Field Recycled . | . . . . . . . . . . . . . . . . . . . . . . . . . . . . Retrieved Matter . | . . . . . . . . . . . . . . . . . . . . . . . . . . . . Parts Self-Destructed 8 | . . 8 . . . . . . . . . . . . . . . . . . . . . . . . . Prevented . | . . . . . . . . . . . . . . . . . . . . . . . . . . . . Parts Restored . | . . . . . . . . . . . . . . . . . . . . . . . . . . . . Kills | -11 -10 -10 -8 -8 -8 -8 -7 -7 -7 -7 -7 -7 -6 -6 -5 -5 -4 -4 -4 -4 -3 -3 -2 -2 -2 -2 -1 ------- Run | Yrd Mat Sub Mat Gar Mat Gar Fac Gar Fac Gar Fac Gar Fac Gar Fac Gar Fac Gar Fac Gar Res Tes Res Gar Res Gar Acc Combat Hostiles Destroyed 363 | . 16 6 30 14 2 13 . 8 2 3 . 28 4 15 4 7 . 3 6 7 8 29 32 16 37 26 47 Melee 1 | . . . . 1 . . . . . . . . . . . . . . . . . . . . . . . Guns 59 | . . . 14 . . . . . . . . . 2 13 4 1 . . . . . . . 9 10 6 . Cannons 192 | . 16 3 12 9 2 5 . 5 . 3 . 18 2 . . . . 3 5 6 8 28 23 . 24 7 13 AOE 93 | . . 3 . 3 . 8 . 3 2 . . 10 . 2 . 6 . . . 1 . . 6 6 2 11 30 Classes Destroyed 26 | . 8 3 5 2 . . . . . 1 . . . 2 . . . . . . . . 1 . . . 4 Worker 16 | . 1 . 1 . . . . . . . . . 2 . . . 1 . . . . . 2 . 4 . 5 Builder 16 | . 1 . . . 1 . . . . . . . . . 2 . . . . . 1 1 3 . 2 . 5 Tunneler 1 | . . . . . . . . . . . . . . . . . . . . . . . . . . . 1 Hauler 7 | . 2 . 2 . 2 . . . . . . . . . . . . . . . . . . . 1 . . Recycler 9 | . 1 . 1 . . . 1 . . . 1 . 1 . . . . . . . . 2 1 . 1 . . Mechanic 6 | . . . 1 . . . . . . . . . . . . . . . . . . . . . 1 . 4 Operator 3 | . 1 . . . . . . . . . . 1 . . . . . . . . 1 . . . . . . Drone 1 | . . . . . . . . . . . . . . . . . . . . . . . 1 . . . . Turret 2 | . . 2 . . . . . . . . . . . . . . . . . . . . . . . . . Watcher 6 | . 1 . . . . . . . . . . . 1 . . . . . . . . . 1 . 3 . . Swarmer 80 | . 6 3 9 4 . 3 . 5 . . . 16 . . . 6 . 1 . . 1 1 3 4 2 8 8 Cutter 10 | . . . . . . . . . . . . . . 6 . . . . . . . . . . . 4 . Saboteur 1 | . . . . . . . . . . . . . . . . . . . . . . . . . . . 1 Grunt 93 | . 10 . 10 4 . 3 . 2 . . . . . 4 1 . . 1 1 5 2 6 11 8 8 8 9 Brawler 10 | . . . . . . . . . . 1 . 1 . . . . . . 1 . . . 1 . 1 1 4 Duelist 11 | . . . . 2 . 1 . . . . . 2 . 1 . . . . . . . 1 1 . . . 3 Sentry 13 | . . . 6 1 1 2 . 1 . . . 1 . 1 . . . . . . . . . . . . . Demolisher 2 | . . . . . . . . . . . . . . . . . . . . . . . . . . . 2 Specialist 11 | . . . 1 . . . . 1 . . . . . . . . . . . . . 2 3 . 2 . 2 Hunter 34 | . . . 3 . 1 1 . . 2 . . . 2 . 1 1 . . . . . 1 6 2 8 1 5 Programmer 93 | . . . . 3 . 4 . . . 3 . 8 2 1 2 . . 1 4 3 6 17 5 2 17 4 11 Heavy 5 | . . . 1 . . . . . . . . . . . . . . . . . . . 1 . 1 . 2 Striker 2 | . . . . . . . . . . . . . . . . . . . . . . . . . . . 2 Executioner 3 | . . . . . . . . . . . . . . 2 . . . . . . . . . . . . 1 Protovariant H 1 | . . . . . . . . . . . . . . . . . . . . . . 1 . . . . . Subdweller 3 | . . 3 . . . . . . . . . . . . . . . . . . . . . . . . . Scientist 1 | . . 1 . . . . . . . . . . . . . . . . . . . . . . . . . Wasp 1 | . . . . 1 . . . . . . . . . . . . . . . . . . . . . . . Best Kill Streak 12 | . 4 3 5 5 3 9 1 3 2 1 1 6 2 5 3 6 1 1 2 3 2 6 7 4 9 12 12 Combat Bots Only 12 | . 3 3 4 5 2 9 . 3 2 1 . 6 1 5 2 6 . 1 2 3 2 4 4 4 5 12 11 Max Kills in Single Turn 5 | . 2 3 2 3 2 2 1 4 2 1 1 3 1 2 2 4 1 1 1 1 1 2 2 2 3 4 5 Gunslinging . | . . . . . . . . . . . . . . . . . . . . . . . . . . . . Exploded 4 | . . 3 . 3 . 2 . 3 2 . . 3 . 2 . 4 . . . 1 . . 2 2 1 4 3 Melee 1 | . . . . 1 . . . . . . . . . . . . . . . . . . . . . . . Uniques/NPCs Destroyed . | . . . . . . . . . . . . . . . . . . . . . . . . . . . . Combat | -11 -10 -10 -8 -8 -8 -8 -7 -7 -7 -7 -7 -7 -6 -6 -5 -5 -4 -4 -4 -4 -3 -3 -2 -2 -2 -2 -1 -------- Run | Yrd Mat Sub Mat Gar Mat Gar Fac Gar Fac Gar Fac Gar Fac Gar Fac Gar Fac Gar Fac Gar Res Tes Res Gar Res Gar Acc Hostile Shots Fired 2825 | . 46 66 190 52 7 51 14 57 25 17 5 127 82 109 59 31 5 55 43 82 43 373 274 118 207 115 572 Missed 855 | . 15 24 54 14 3 12 6 17 11 5 2 41 31 38 18 10 . 23 19 32 14 83 78 38 65 31 171 Hits 1970 | . 31 42 136 38 4 39 8 40 14 12 3 86 51 71 41 21 5 32 24 50 29 290 196 80 142 84 401 Melee 69 | . . . . 4 . . . . . . . . . 8 . . . . . . . . 14 . . 10 33 Projectile 1901 | . 31 42 136 34 4 39 8 40 14 12 3 86 51 63 41 21 5 32 24 50 29 290 182 80 142 74 368 AOE 14 | . . 1 . 1 . . . . . . . . . 2 1 . . . 2 . . . . . . 4 3 Critical Strikes 102 | . . 1 5 2 . 1 . 2 . 2 . 3 1 4 1 1 1 5 4 2 3 19 3 1 8 10 23 Part Disruptions 7 | . . 1 . . . . . . . . . . . . . . . . . . . . . . 2 . 4 Damage Taken 35058 | . 304 568 1989 551 45 519 111 498 146 411 114 1160 795 1687 947 354 47 288 558 480 697 4319 3545 1567 3486 1512 8360 Core 2947 | . 41 144 224 27 . 141 . 40 12 48 5 150 38 290 28 12 . 10 38 10 59 235 148 38 91 82 1036 Absorbed by Shields 7679 | . . . 38 130 . . . . . . . . . . . 75 51 301 469 503 285 1744 1048 211 . 818 2006 Reduced by Siege Mode 609 | . . . . . . . . . . 7 . 14 11 99 . . . . . . . 167 77 6 47 3 178 Ignored by Resistances 2711 | . . . 111 . . 6 . . . . . . . . . . . . . . . . 290 234 470 85 1515 Regen/Repaired (Parts) 7840 | . 63 . . . . . . 39 . 50 6 . . . . . 113 . 84 36 318 856 1775 681 1816 644 1359 Core Remaining (%) 70 | 100 . 72 . . . 48 . . . . . 56 . 59 . 94 . . . 93 . 93 . . . 69 21 Volleys Fired 1640 | . 55 35 107 28 11 27 11 32 10 37 10 68 48 83 40 38 3 58 45 119 60 113 159 93 187 73 90 Largest 3 | . 2 2 2 2 2 2 2 2 1 2 1 2 2 3 2 2 1 2 2 2 2 2 2 1 1 2 1 Hottest 240 | . 66 66 150 150 150 150 150 150 39 60 5 129 97 73 48 71 38 240 240 240 240 240 225 120 200 214 200 Shots Fired 2164 | . 110 47 213 56 22 47 13 41 10 49 10 112 63 163 61 45 4 64 61 121 65 184 163 93 188 70 89 Gun 522 | . 24 13 103 . . . . . . . . . 28 140 49 22 2 . . . . . . 56 59 26 . Cannon 1138 | . 86 27 110 55 22 39 4 25 2 28 . 96 10 . . . . 31 33 45 37 157 138 11 99 30 53 Launcher 58 | . . 7 . 1 . 5 . 1 1 . . 6 . 2 . 3 . . . . . . 6 8 5 6 7 Special 446 | . . . . . . 3 9 15 7 21 10 10 25 21 12 20 2 33 28 76 28 27 19 18 25 8 29 Kinetic 530 | . 110 46 130 . . . . 3 . . . . 28 140 49 22 2 . . . . . . . . . . Thermal 1104 | . . . 83 55 22 39 4 22 2 28 . 96 . . . . . 31 33 46 37 157 138 67 146 45 53 Explosive 52 | . . 1 . 1 . 5 . 1 1 . . 6 . 2 . 3 . . . . . . 6 8 5 6 7 Electromagnetic 33 | . . . . . . . . . . . . . 10 . . . . . . . . . . . 12 11 . Robot Hit Streak 37 | . 12 8 20 13 9 20 8 6 5 12 7 9 14 31 12 10 2 11 12 34 37 16 18 22 28 28 17 Robot Miss Streak 6 | . 6 2 6 2 3 4 1 3 2 3 1 3 2 4 3 2 1 3 2 1 2 6 6 2 5 2 3 Penetration Max 1 | . . . . . . . . . . . . . . 1 1 . . . . . . . . . . . . Secondary Targets 3 | . . . 1 . . . . . . . . . . 1 1 . . . . . . . . . . . . Max Gunslinging Chain 1 | . . . 1 . . . . . . . . . . 1 1 . . . . . . . . . . . . Capacitor 379 | . . . . . . . . . . . . . . . . . . . . . . . 130 66 158 25 . Shots Hit Robots 1440 | . 65 22 141 38 15 31 10 39 6 68 9 64 49 89 41 26 2 35 40 89 37 104 114 74 124 56 52 Core Hits 661 | . 23 12 72 19 6 22 . 21 4 19 . 31 14 27 8 9 2 4 7 11 13 35 67 38 77 37 83 Critical Kills 13 | . . . 3 1 . . . . . . . . . . . . . . 1 . . 1 3 . 1 1 2 Critical Parts Destroyed 1 | . . . . . . . . . . . . . . . 1 . . . . . . . . . . . . Critical Strikes 23 | . 1 . 3 1 . . . 1 . . . . . . 1 . . . 1 . . 1 3 3 3 2 3 Burn 6 | . . . . . . . . . . . . . . . . . . . . . . . . 3 2 1 . Meltdown 13 | . . . 3 1 . . . . . . . . . . . . . . 1 . . 1 3 . 1 1 2 Destroy 1 | . . . . . . . . . . . . . . . 1 . . . . . . . . . . . . Blast 3 | . 1 . . . . . . 1 . . . . . . . . . . . . . . . . . . 1 Melee Attacks 90 | . . . . 9 . 7 . 24 6 39 . 5 . . . . . . . . . . . . . . . Impact . | . . . . . . . . . . . . . . . . . . . . . . . . . . . . Slashing 90 | . . . . 9 . 7 . 24 6 39 . 5 . . . . . . . . . . . . . . . Piercing . | . . . . . . . . . . . . . . . . . . . . . . . . . . . . Sneak Attacks . | . . . . . . . . . . . . . . . . . . . . . . . . . . . . Combat Hostiles . | . . . . . . . . . . . . . . . . . . . . . . . . . . . . Follow-up Attacks . | . . . . . . . . . . . . . . . . . . . . . . . . . . . . Damage Inflicted 63638 | . 1224 807 2878 1244 400 1685 62 1881 176 3277 . 2578 694 1829 773 531 60 457 1019 935 1009 4243 5461 3335 6400 2708 17972 Guns 7784 | . 204 . 946 . . . . . . . . . 406 1715 669 199 . . . . . . . 1408 1528 709 . Cannons 29014 | . 981 398 1926 997 400 562 62 373 . 550 . 1643 272 . . . . 457 945 929 963 4002 4143 298 2838 850 5425 Explosions 22009 | . . 409 . 217 . 1085 . 332 176 . . 935 . 114 . 332 . . . . . 135 1148 1599 1922 1149 12456 Melee 3971 | . . . . 30 . 38 . 1176 . 2727 . . . . . . . . . . . . . . . . . Ramming 854 | . 39 . 6 . . . . . . . . . 16 . 104 . 60 . 74 . 46 106 170 30 112 . 91 Kinetic 6649 | . 1185 807 1422 . . . . 48 . . . . 406 1715 669 199 . . 74 . . . . . . . 124 Thermal 41177 | . . . 1450 997 400 562 62 325 . 550 . 1643 . . . . . 457 871 935 963 4137 4143 1706 4431 1356 16189 Explosive 10292 | . . . . 217 . 1085 . 332 176 . . 935 . 114 . 332 . . . . . . 1148 1599 1637 1149 1568 Electromagnetic 695 | . . . . . . . . . . . . . 272 . . . . . . . . . . . 220 203 . Impact . | . . . . . . . . . . . . . . . . . . . . . . . . . . . . Slashing 3971 | . . . . 30 . 38 . 1176 . 2727 . . . . . . . . . . . . . . . . . Piercing . | . . . . . . . . . . . . . . . . . . . . . . . . . . . . Highest Corruption 54 | . . . 2 4 4 6 . . . 2 2 23 . . . . 3 3 3 3 14 47 4 . 43 54 14 Average Corruption 9 | . . . 1 2 4 4 . . . 1 1 8 . . . . 3 3 2 3 4 32 2 . 17 24 3 Corruption Purged 6 | . . . . . . . . . . . 2 . . . . . . . . . . . 4 . . . . Corruption Blocked . | . . . . . . . . . . . . . . . . . . . . . . . . . . . . Effects 490 | . . . 29 11 11 18 . . . 13 11 22 . . . . 8 17 11 12 24 144 14 . 85 37 23 Message Errors 129 | . . . 8 3 5 3 . . . 6 5 6 . . . . . 3 . 4 7 41 3 . 21 8 6 Matter Fused 95 | . . . 6 2 2 7 . . . 5 1 2 . . . . 4 2 4 4 8 24 4 . 13 6 1 Heat Flow Errors 50 | . . . 3 1 . 2 . . . 1 3 6 . . . . 1 2 1 1 1 12 . . 10 2 4 Energy Discharges 51 | . . . 2 . 1 1 . . . . 1 4 . . . . 1 5 2 . 3 15 4 . 5 5 2 Parts Rejected 12 | . . . 1 . 1 . . . . . . 1 . . . . . . . . 2 3 . . 3 . 1 Parts Fused 2 | . . . . . . . . . . . . . . . . . . . . . . 1 . . 1 . . Data Loss (minor) 53 | . . . 4 2 2 1 . . . 1 . . . . . . . 4 3 1 2 12 1 . 15 3 2 Data Loss (major) 26 | . . . 1 1 . 2 . . . . 1 1 . . . . 1 . . 1 . 12 2 . 4 . . Misfires 20 | . . . . 1 . 1 . . . . . . . . . . 1 1 1 . 1 8 . . 4 2 . Alerts 9 | . . . 3 . . . . . . . . . . . . . . . . 1 . 2 . . 1 . 2 Misdirections 12 | . . . . . . . . . . . . . . . . . . . . . . 5 . . 3 . 4 Weapon Failures 31 | . . . 1 1 . 1 . . . . . 2 . . . . . . . . . 9 . . 5 11 1 Overload Shots 5 | . . . . . . . . . . . . 5 . . . . . . . . . . . . . . . Overflow Damage 3468 | . 24 17 10 52 5 40 . 26 . 68 . 187 . . 48 26 . 39 70 24 . 144 190 112 36 61 2289 Projectiles 1412 | . 24 . 10 22 5 16 . . . 46 . 79 . . . . . 39 70 24 . 37 128 . 15 40 857 Explosions 1930 | . . 17 . 30 . 21 . 3 . . . 108 . . . 26 . . . . . 107 32 112 21 21 1432 Melee 126 | . . . . . . 3 . 23 . 22 . . . . 48 . . . . . . . 30 . . . . Knockbacks 53 | . 9 7 27 . . . . . . . . . . . 1 . 1 . 2 . . 1 1 . . . 4 Impact 7 | . . . . . . . . . . . . . . . 1 . 1 . 2 . . 1 1 . . . 1 Kinetic 37 | . 9 7 19 . . . . . . . . . . . . . . . . . . . . . . . 2 Secondary 9 | . . . 8 . . . . . . . . . . . . . . . . . . . . . . . 1 Self-Inflicted Damage 1021 | . . 55 . 25 . 24 . 23 . . . . . . . . . . . . . 72 . . . 120 702 Shots 21 | . . 1 . 1 . 3 . 1 . . . . . . . . . . . . . 1 . . . 2 12 Rammed 60 | . 12 . 1 . . . . . . . . . 2 . . . 5 . 5 . 5 7 8 2 3 . 10 Targets Rammed 71 | . 12 . 2 . . . 1 . . . 1 . 3 . 3 . 5 . 5 . 5 7 9 2 6 . 10 Kicked 3 | . . . . . . . . . . . . . . . 3 . . . . . . . . . . . . Crushed 8 | . . . 1 . . . 1 . . . 1 . 1 . . . . . . . . . 1 . 3 . . Highest Temperature 575 | . . . 302 282 . 354 78 234 . 140 154 258 . 2 . . . 34 234 280 254 198 470 449 575 84 194 Average Temperature 102 | . . . 44 118 . 105 39 111 . 85 74 88 . 1 . . . 32 70 90 46 56 129 198 120 21 109 Received Heat Transfer 4105 | . 108 162 528 78 9 135 45 78 30 84 30 182 30 141 105 83 . 61 53 95 78 567 253 209 183 138 640 Effects 31 | . . . 1 . . 1 . . . . . 1 . . . . . . . . . . 8 4 16 . . Shutdowns 20 | . . . . . . 1 . . . . . . . . . . . . . . . . 5 2 12 . . Energy Bleed 5 | . . . 1 . . . . . . . . 1 . . . . . . . . . . 1 . 2 . . Interference 4 | . . . . . . . . . . . . . . . . . . . . . . . 2 2 . . . Matter Decay 1 | . . . . . . . . . . . . . . . . . . . . . . . . . 1 . . Damage (minor) 1 | . . . . . . . . . . . . . . . . . . . . . . . . . 1 . . Siege Activations 26 | . . . . . . . . . . 2 . 1 1 1 . . . . 1 . 1 6 4 1 3 1 4 Total Turns 322 | . . . . . . . . . . 22 . 18 9 36 . . . . 5 . 6 53 52 9 32 17 63 Longest Duration 36 | . . . . . . . . . . 12 . 18 9 36 . . . . 5 . 6 26 19 9 19 17 23 Martial Activations . | . . . . . . . . . . . . . . . . . . . . . . . . . . . . Shielding Activations . | . . . . . . . . . . . . . . . . . . . . . . . . . . . . Robots Disrupted . | . . . . . . . . . . . . . . . . . . . . . . . . . . . . Combat Hostiles . | . . . . . . . . . . . . . . . . . . . . . . . . . . . . Robots Corrupted 4 | . . . . . . . . . . . . . . . 1 . . . . . . . 1 . . 1 1 Combat Hostiles 1 | . . . . . . . . . . . . . . . . . . . . . . . . . . 1 . Parts Fried 19 | . . . . . . . . . . . . . 2 . 4 . . . . . . . 7 . 3 3 . Impact Corruptions 5 | . . . . . . . . . . . . . . . 2 . . . . . . . 2 . . . 1 Robots Melted 17 | . . . 4 1 . . . . . . . . . . . . . . 1 . . 1 3 1 1 1 4 Combat Hostiles 17 | . . . 4 1 . . . . . . . . . . . . . . 1 . . 1 3 1 1 1 4 Parts Melted 70 | . . . 9 3 1 . . . . 1 . 6 . . . 1 . . 1 1 2 4 10 5 19 4 3 Heat Transferred 36923 | . . . 2146 1369 592 814 74 481 . 666 . 1894 . . . . . 370 666 773 740 2050 3532 2257 4170 1480 12849 Parts Sabotaged . | . . . . . . . . . . . . . . . . . . . . . . . . . . . . Parts Stolen . | . . . . . . . . . . . . . . . . . . . . . . . . . . . . Parts Stripped . | . . . . . . . . . . . . . . . . . . . . . . . . . . . . Power Chain Reactions 1 | . . . . . . . . . . . . . . . . . . . . . . 1 . . . . . Alert | -11 -10 -10 -8 -8 -8 -8 -7 -7 -7 -7 -7 -7 -6 -6 -5 -5 -4 -4 -4 -4 -3 -3 -2 -2 -2 -2 -1 ------- Run | Yrd Mat Sub Mat Gar Mat Gar Fac Gar Fac Gar Fac Gar Fac Gar Fac Gar Fac Gar Fac Gar Res Tes Res Gar Res Gar Acc Maximum Alert Level 5 | . 1 . 1 3 2 2 1 3 1 2 1 4 2 2 1 3 2 2 2 2 1 2 3 4 3 4 5 Low Security (%) 41 | 100 85 . 49 4 . . 68 2 79 7 79 18 88 32 70 21 22 40 20 30 95 69 65 . 16 . . Level 1 26 | . 14 . 50 18 58 61 31 39 20 25 20 12 . 37 29 61 55 53 51 34 4 26 8 . 26 . . Level 2 17 | . . . . 52 41 38 . 46 . 67 . 19 11 30 . 5 21 6 28 35 . 3 16 22 43 19 . Level 3 8 | . . . . 24 . . . 11 . . . 42 . . . 10 . . . . . . 8 36 13 42 36 Level 4 3 | . . . . . . . . . . . . 6 . . . . . . . . . . . 40 . 38 10 Level 5 . | . . . . . . . . . . . . . . . . . . . . . . . . . . . . High Security 2 | . . . . . . . . . . . . . . . . . . . . . . . . . . . 52 Max Security . | . . . . . . . . . . . . . . . . . . . . . . . . . . . . Peak Influence 3062 | . 296 . 333 795 566 570 298 732 384 658 345 1199 629 573 300 819 491 496 585 646 372 435 743 1357 822 1322 3062 Initial 792 | . . . . 153 387 224 298 120 384 . 345 81 629 7 300 2 429 . 260 21 363 . 75 557 762 582 792 Average 366 | . 64 . 174 531 419 389 162 441 111 475 87 603 84 292 91 327 287 232 299 340 31 143 243 1001 471 1026 1656 Influence Increases 22066 | . 579 145 1290 722 319 446 220 772 206 738 241 1348 271 765 240 929 88 656 1070 855 615 1290 1532 1020 1635 860 3214 Destroy 0b10 Robot/C 8880 | . 320 100 760 340 160 300 120 460 100 320 . 600 80 340 80 240 20 80 200 140 240 580 640 340 740 520 1060 Destroy 0b10 Robot/NC 410 | . 35 . 40 . 25 . 5 20 . 30 5 5 25 . 10 . 5 . . . 10 15 35 . 65 . 80 Destroy Leader 1346 | . 96 . 208 10 38 30 20 20 20 30 . 60 44 30 20 20 10 . 40 10 40 90 102 50 128 70 160 Allied During Kill 1878 | . . . 58 13 61 7 30 96 36 114 1 34 36 26 56 186 34 43 110 71 86 7 158 23 109 33 450 Trap Triggered on 0b10 10 | . . . . . . . . . . . . . . . . . . . . . . 10 . . . . . Successful Hack 275 | . 14 . 16 18 . 10 . 12 6 . 21 . 8 . 25 7 3 14 . 18 24 27 24 21 7 . . Select Force Hacks 120 | . 60 . . . . . 30 . . . 30 . . . . . . . . . . . . . . . . Disable Machine 885 | . 30 . 30 15 15 . 15 . 30 . . 15 45 . 30 . . 45 135 . 75 180 . 30 90 . 105 Anti-Garrison Action 3150 | . . . . 250 . 50 . 100 . 200 . 500 . 300 . 450 . 250 150 250 . . 150 350 . 150 . Destroy Structure 3474 | . 9 . 23 31 5 34 . 49 14 29 . 74 33 69 4 26 16 224 180 366 140 130 408 176 288 57 1089 Partial Spotted 30 | . . . . . . . . . . . . . . . 15 . . . 15 . . . . . . . . Lose Combat Pursuer 660 | . 15 45 15 45 15 15 . 15 . 15 . 60 . . . . . . . . . 75 15 30 . 30 270 Miscellaneous 948 | . . . 140 . . . . . . . 184 . . . . . . . 240 . . 176 . . 208 . . Influence Decreases 19004 | . 297 427 1054 163 768 222 618 212 938 80 783 265 1460 202 810 113 907 160 1536 239 1260 1156 924 406 2215 315 1474 Entered New Map 5101 | . . 136 . 83 408 122 272 52 348 . 313 35 570 3 273 1 390 . 236 9 283 1 60 186 595 195 530 Time Decay 5902 | . 297 281 602 . 170 . 286 . 144 . 155 . 405 . 254 . 350 . 580 . 353 517 494 . 680 . 334 Search Patrol Dispatched 100 | . . . . . . . . . . . . . . . . . . . . . . 100 . . . . . Lost Part 650 | . . 10 70 20 . 20 . . 10 . . 10 20 30 . 30 . . . . 20 30 10 10 60 40 260 Lost Ally 3822 | . . . 60 60 40 80 60 160 . 80 50 220 90 169 60 82 167 160 220 230 329 75 360 210 430 80 350 Purge Threat 3429 | . . . 322 . 150 . . . 436 . 265 . 375 . 223 . . . 500 . 275 433 . . 450 . . Squads Dispatched 143 | . 7 . 7 . 1 . 4 . . . 4 . 4 . 3 . 1 . 13 . 9 10 21 . 14 . 45 Investigation 22 | . 6 . 3 . . . 1 . . . 3 . . . 1 . . . . . 1 1 2 . 4 . . Extermination 26 | . . . . . . . . . . . 1 . 2 . 1 . 1 . 4 . 3 6 3 . 4 . 1 Reinforcement 36 | . 1 . 4 . . . 1 . . . . . 2 . 1 . . . 4 . 5 3 6 . 4 . 5 Assault 41 | . . . . . . . . . . . . . . . . . . . 2 . . . 4 . 2 . 33 Garrison 18 | . . . . . 1 . 2 . . . . . . . . . . . 3 . . . 6 . . . 6 Intercept . | . . . . . . . . . . . . . . . . . . . . . . . . . . . . Searches Triggered 1 | . . . . . . . . . . . . . . . . . . . . . . 1 . . . . . Construction Impeded 5 | . . . . . . . . . . . . . . . . . . . . . 1 . 1 . 2 . 1 Haulers Reinforced 4 | . . . . . . . . . . . . . 1 . . . . . 1 . . . 1 . . . 1 Active Scanning Responses . | . . . . . . . . . . . . . . . . . . . . . . . . . . . . Cargo Convoy Interrupts 1 | . . . . . . . . . . . . . . . . . . . . . . . . . 1 . . Alert ID Control Effect 345 | . . . . . . . . . . 10 12 5 15 11 8 15 12 18 47 18 40 4 38 12 41 6 33 Stealth | -11 -10 -10 -8 -8 -8 -8 -7 -7 -7 -7 -7 -7 -6 -6 -5 -5 -4 -4 -4 -4 -3 -3 -2 -2 -2 -2 -1 --------- Run | Yrd Mat Sub Mat Gar Mat Gar Fac Gar Fac Gar Fac Gar Fac Gar Fac Gar Fac Gar Fac Gar Res Tes Res Gar Res Gar Acc Distress Signals 45 | . 4 . 3 . 1 . . . . . . . 1 . 1 . 2 . 5 . 12 1 4 . 7 . 4 Communications Jammed 515 | . . . . . . . . . . . . . 14 . 4 . . . 2 . 9 72 117 . 52 . 245 Distress Signals 507 | . . . . . . . . . . . . . 14 . 4 . . . . . 9 72 117 . 50 . 241 Times Spotted 1065 | . 22 11 57 17 16 22 9 30 6 30 12 45 25 39 24 33 9 34 52 32 58 71 81 37 100 34 159 Peak Tracking Total 19 | . 4 6 6 4 4 10 2 6 3 5 3 9 4 11 4 6 5 6 5 4 7 7 7 9 11 9 19 Tactical Retreats 31 | . 1 2 1 3 1 1 . 1 . 1 . 2 . . . . . . . . . 5 1 2 . 1 9 Traps | -11 -10 -10 -8 -8 -8 -8 -7 -7 -7 -7 -7 -7 -6 -6 -5 -5 -4 -4 -4 -4 -3 -3 -2 -2 -2 -2 -1 ------- Run | Yrd Mat Sub Mat Gar Mat Gar Fac Gar Fac Gar Fac Gar Fac Gar Fac Gar Fac Gar Fac Gar Res Tes Res Gar Res Gar Acc Traps Triggered 45 | . 4 . 2 . . 3 . 1 . . . 4 . 3 . 7 1 3 2 . 2 2 . 7 3 . 1 Indirectly . | . . . . . . . . . . . . . . . . . . . . . . . . . . . . Trap Hack Attempts . | . . . . . . . . . . . . . . . . . . . . . . . . . . . . Triggered . | . . . . . . . . . . . . . . . . . . . . . . . . . . . . Disarmed . | . . . . . . . . . . . . . . . . . . . . . . . . . . . . Reprogrammed . | . . . . . . . . . . . . . . . . . . . . . . . . . . . . Reused 1 | . . . . . . . . . . . . . . . . . . . . . . 1 . . . . . Traps Extracted . | . . . . . . . . . . . . . . . . . . . . . . . . . . . . Installed 4 | . . . . . . . . . . . . . 3 . . . . . . . . 1 . . . . . Triggered 1 | . . . . . . . . . . . . . . . . . . . . . . 1 . . . . . Machines | -11 -10 -10 -8 -8 -8 -8 -7 -7 -7 -7 -7 -7 -6 -6 -5 -5 -4 -4 -4 -4 -3 -3 -2 -2 -2 -2 -1 ---------- Run | Yrd Mat Sub Mat Gar Mat Gar Fac Gar Fac Gar Fac Gar Fac Gar Fac Gar Fac Gar Fac Gar Res Tes Res Gar Res Gar Acc Machines Disabled 109 | . 2 5 2 2 1 1 1 6 2 3 . 6 3 7 2 5 . 6 10 3 5 14 1 7 6 2 7 Max in Single Turn 2 | . 1 2 1 1 1 1 1 1 1 1 . 1 1 2 . 1 . 1 1 1 1 2 . 1 1 1 1 Garrison Access 7 | . . . . . . . . . . . . . . . . . . . 1 . 2 . 1 . 2 . 1 Garrison Relay 35 | . . . . 1 . 1 . 2 . 3 . 5 . 4 . 5 . 3 . 4 . . . 5 . 2 . Phase Generator 4 | . . . . 1 . . . . . 1 . . . 1 . 1 . . . . . . . . . . . Energy Cycler 1 | . . . . . . . . . . . . . . . . . . . . . . . . . . . 1 Machines Repaired . | . . . . . . . . . . . . . . . . . . . . . . . . . . . . Machines Dismantled . | . . . . . . . . . . . . . . . . . . . . . . . . . . . . Machines Sabotaged . | . . . . . . . . . . . . . . . . . . . . . . . . . . . . Overloaded Fab Kills . | . . . . . . . . . . . . . . . . . . . . . . . . . . . . Hacking | -11 -10 -10 -8 -8 -8 -8 -7 -7 -7 -7 -7 -7 -6 -6 -5 -5 -4 -4 -4 -4 -3 -3 -2 -2 -2 -2 -1 --------- Run | Yrd Mat Sub Mat Gar Mat Gar Fac Gar Fac Gar Fac Gar Fac Gar Fac Gar Fac Gar Fac Gar Res Tes Res Gar Res Gar Acc Machines Accessed 103 | . 9 2 11 3 5 1 1 2 3 2 5 4 5 1 4 3 6 2 4 2 6 3 4 2 11 1 1 Terminals 65 | . 6 . 9 3 2 1 . 2 2 2 3 4 2 1 3 3 2 2 1 2 2 3 2 2 5 1 . Fabricators 3 | . . . . . . . . . . . . . 1 . . . . . . . . . . . 2 . . Repair Stations 5 | . 1 . . . 1 . . . . . . . . . . . 2 . 1 . . . . . . . . Recycling Units 2 | . 2 . . . . . . . . . . . . . . . . . . . . . . . . . . Scanalyzers 8 | . . . 1 . 1 . . . . . 1 . 1 . . . 1 . . . 2 . . . 1 . . Garrison Access 18 | . . . 1 . 1 . 1 . 1 . 1 . 1 . 1 . 1 . 2 . 2 . 2 . 3 . 1 Total Hacks 229 | . 28 13 25 4 11 1 3 2 6 3 14 7 13 2 7 5 15 3 7 2 10 9 7 3 25 3 1 Successful 111 | . 9 13 9 3 6 1 3 1 4 1 9 . 3 . 5 1 7 1 4 2 6 4 5 2 11 . 1 Failed 114 | . 19 . 15 1 5 . . 1 2 2 5 7 10 2 2 4 7 2 3 . 3 5 2 1 13 3 . Catastrophic 27 | . 4 . 2 1 1 . . . 1 . 2 2 2 . 1 3 4 . . . 1 . . . 3 . . Database Lockouts 4 | . . . 1 . . . . . . . . . . . . . 1 . . . 1 . . . 1 . . Manual 107 | . 29 . 19 1 5 1 1 . 4 3 8 3 3 2 4 . 4 . 1 1 3 5 1 . 9 . . Terminals 134 | . 20 . 22 4 5 1 . 2 4 3 8 7 7 2 4 5 2 3 2 2 3 9 2 3 11 3 . Fabricators 6 | . . . . . . . . . . . . . 2 . . . . . . . . . . . 4 . . Repair Stations 16 | . 4 . . . 2 . . . . . . . . . . . 9 . 1 . . . . . . . . Recycling Units 4 | . 4 . . . . . . . . . . . . . . . . . . . . . . . . . . Scanalyzers 20 | . . . 2 . 2 . . . . . 3 . 3 . . . 2 . . . 3 . . . 5 . . Garrison Access 36 | . . . 1 . 2 . 3 . 2 . 3 . 1 . 3 . 2 . 4 . 4 . 5 . 5 . 1 Terminal Hacks 48 | . 4 13 6 3 1 1 . 1 2 1 4 . 1 . 1 1 . 1 . 2 1 1 1 2 1 . . Record 12 | . . 12 . . . . . . . . . . . . . . . . . . . . . . . . . Robot Schematic 1 | . . . . . . . . . 1 . . . . . . . . . . . . . . . . . . Prototype ID Bank 1 | . 1 . . . . . . . . . . . . . . . . . . . . . . . . . . Open Door 4 | . . . . 1 . . . . . . . . . . . 1 . . . 1 . . . 1 . . . Branch Access Points 1 | . . . . . . . . . . . . . . . . . . . . . 1 . . . . . . Emergency Access Points 2 | . . . . . . . . . . . . . . . . . . 1 . . . . . 1 . . . Fabricator Index 2 | . . . . . . . . . . . . . 1 . . . . . . . . . . . 1 . . Garrison Index 3 | . . . 1 . . . . . . . 1 . . . 1 . . . . . . . . . . . . Alert Level 2 | . . . 2 . . . . . . . . . . . . . . . . . . . . . . . . Unreport Threat 7 | . . . 3 . 1 . . . 1 . 2 . . . . . . . . . . . . . . . . Locate Traps 2 | . . . . . . . . . . . 1 . . . . . . . . . . . 1 . . . . Zone Layout 4 | . 3 . . . . . . . . . . . . . . . . . . . . 1 . . . . . Garrison Registry 5 | . . . . 1 . 1 . 1 . 1 . . . . . . . . . 1 . . . . . . . Patrol Navigation 1 | . . . . 1 . . . . . . . . . . . . . . . . . . . . . . . Proto ID Catalog 1 | . . 1 . . . . . . . . . . . . . . . . . . . . . . . . . Fabricator Hacks 1 | . . . . . . . . . . . . . . . . . . . . . . . . . 1 . . Load Schematic 1 | . . . . . . . . . . . . . . . . . . . . . . . . . 1 . . Repair Station Hacks 6 | . 2 . . . 1 . . . . . . . . . . . 3 . . . . . . . . . . Scan Component 4 | . 1 . . . 1 . . . . . . . . . . . 2 . . . . . . . . . . Repair 2 | . 1 . . . . . . . . . . . . . . . 1 . . . . . . . . . . Recycling Unit Hacks 1 | . 1 . . . . . . . . . . . . . . . . . . . . . . . . . . Retrieve Components 1 | . 1 . . . . . . . . . . . . . . . . . . . . . . . . . . Scanalyzer 10 | . . . 1 . 2 . . . . . 1 . 1 . . . 1 . . . 1 . . . 3 . . Retrieve Study 10 | . . . 1 . 2 . . . . . 1 . 1 . . . 1 . . . 1 . . . 3 . . Garrison Access Hacks 32 | . . . 1 . 2 . 2 . 2 . 2 . 1 . 2 . 2 . 4 . 4 . 4 . 5 . 1 Unlock Access 13 | . . . 1 . 1 . 1 . 1 . 1 . 1 . 1 . 1 . 2 . . . 2 . 1 . . Seal Access 5 | . . . . . . . . . . . . . . . . . . . . . 2 . . . 2 . 1 Coupler Status 14 | . . . . . 1 . 1 . 1 . 1 . . . 1 . 1 . 2 . 2 . 2 . 2 . . Unauthorized Hacks 13 | . 2 . 1 . . . 1 . . . 2 . . . 2 . 1 . . . . 3 . . 1 . . Terminals 7 | . . . 1 . . . . . . . 1 . . . 2 . . . . . . 3 . . . . . Track 2 | . . . . . . . . . . . . . . . 1 . . . . . . 1 . . . . . Assimilate 2 | . . . 1 . . . . . . . . . . . . . . . . . . 1 . . . . . Botnet 1 | . . . . . . . . . . . . . . . . . . . . . . 1 . . . . . Operators 2 | . . . . . . . . . . . 1 . . . 1 . . . . . . . . . . . . Fabricators 1 | . . . . . . . . . . . . . . . . . . . . . . . . . 1 . . Recompile 1 | . . . . . . . . . . . . . . . . . . . . . . . . . 1 . . Repair Stations 1 | . . . . . . . . . . . . . . . . . 1 . . . . . . . . . . Mechanics 1 | . . . . . . . . . . . . . . . . . 1 . . . . . . . . . . Recycling Units 2 | . 2 . . . . . . . . . . . . . . . . . . . . . . . . . . Tunnel 2 | . 2 . . . . . . . . . . . . . . . . . . . . . . . . . . Scanalyzers . | . . . . . . . . . . . . . . . . . . . . . . . . . . . . Garrison Access 2 | . . . . . . . 1 . . . 1 . . . . . . . . . . . . . . . . Eject 2 | . . . . . . . 1 . . . 1 . . . . . . . . . . . . . . . . Data Cores Recovered 2 | . . . . . . . . . . . . . 1 . . . . . . . 1 . . . . . . Used 1 | . . . . . . . . . . . . . 1 . . . . . . . . . . . . . . Hacking Detections 72 | . 8 . 7 1 5 . 1 2 3 . 3 2 4 . 2 2 5 2 3 . 3 3 4 1 10 1 . Full Trace Events 23 | . 7 . 2 . . . . . . 1 1 3 . 1 1 2 . . . . 1 1 1 . 1 1 . Feedback Events . | . . . . . . . . . . . . . . . . . . . . . . . . . . . . Feedback Blocked . | . . . . . . . . . . . . . . . . . . . . . . . . . . . . Robot Schematics Acquired 3 | . . . . . . . . . 1 . . . . . . . . . . . . 2 . . . . . Robots Built . | . . . . . . . . . . . . . . . . . . . . . . . . . . . . Authchips . | . . . . . . . . . . . . . . . . . . . . . . . . . . . . Time . | . . . . . . . . . . . . . . . . . . . . . . . . . . . . Total Robot Build Rating . | . . . . . . . . . . . . . . . . . . . . . . . . . . . . Part Schematics Acquired 2 | . . . . . . . . . . . . . . . . . . . . . . 2 . . . . . Parts Built . | . . . . . . . . . . . . . . . . . . . . . . . . . . . . Authchips . | . . . . . . . . . . . . . . . . . . . . . . . . . . . . Time . | . . . . . . . . . . . . . . . . . . . . . . . . . . . . Total Part Build Rating . | . . . . . . . . . . . . . . . . . . . . . . . . . . . . Part Studies Acquired 10 | . . . 1 . 2 . . . . . 1 . 1 . . . 1 . . . 1 . . . 3 . . Parts Repaired 2 | . 1 . . . . . . . . . . . . . . . 1 . . . . . . . . . . Time 168 | . 32 . . . . . . . . . . . . . . . 136 . . . . . . . . . . Parts Recycled . | . . . . . . . . . . . . . . . . . . . . . . . . . . . . Recycled Matter . | . . . . . . . . . . . . . . . . . . . . . . . . . . . . Retrieved Matter . | . . . . . . . . . . . . . . . . . . . . . . . . . . . . Retrieved Components 8 | . 8 . . . . . . . . . . . . . . . . . . . . . . . . . . Parts Scanalyzed . | . . . . . . . . . . . . . . . . . . . . . . . . . . . . Part Schematics Acquired . | . . . . . . . . . . . . . . . . . . . . . . . . . . . . Parts Damaged . | . . . . . . . . . . . . . . . . . . . . . . . . . . . . Bothacking | -11 -10 -10 -8 -8 -8 -8 -7 -7 -7 -7 -7 -7 -6 -6 -5 -5 -4 -4 -4 -4 -3 -3 -2 -2 -2 -2 -1 ------------ Run | Yrd Mat Sub Mat Gar Mat Gar Fac Gar Fac Gar Fac Gar Fac Gar Fac Gar Fac Gar Fac Gar Res Tes Res Gar Res Gar Acc Used RIF Installer 12 | . . . . 2 . 1 . 2 . 1 . 1 . 1 . 1 . 1 . 1 . . . 1 . . . Coupler Efficiency 2 | . . . . . . . . . . . . 1 . . . . . . . 1 . . . . . . . Hotswap 1 | . . . . . . . . 1 . . . . . . . . . . . . . . . . . . . Code Merge 1 | . . . . . . . . . . . . . . . . . . 1 . . . . . . . . . Signal Jammer 1 | . . . . 1 . . . . . . . . . . . . . . . . . . . . . . . Zone Cloak 1 | . . . . . . . . . . . . . . . . . . . . . . . . 1 . . . Patrol Navigation 1 | . . . . . . 1 . . . . . . . . . . . . . . . . . . . . . Alert ID Control 1 | . . . . . . . . . . 1 . . . . . . . . . . . . . . . . . Structural Interface 1 | . . . . . . . . . . . . . . 1 . . . . . . . . . . . . . Program Shield 1 | . . . . . . . . . . . . . . . . 1 . . . . . . . . . . . Autoassimilate 2 | . . . . 1 . . . 1 . . . . . . . . . . . . . . . . . . . Robots Hacked 309 | . . . . . . 4 7 8 3 12 10 11 20 18 7 13 2 12 14 23 30 20 20 12 25 12 26 Non-combat 45 | . . . . . . . 4 . 2 . 5 . 6 . 2 . . . 4 . 8 2 2 . 4 . 6 Combat 264 | . . . . . . 4 3 8 1 12 5 11 14 18 5 13 2 12 10 23 22 18 18 12 21 12 20 Autoassimilated 66 | . . . . . . 1 . 1 . 3 1 2 5 3 . 5 . 3 1 7 8 3 5 3 5 5 5 Robot Hacks Applied 275 | . . . . . . 3 8 8 6 9 9 10 19 15 10 8 2 9 20 16 25 21 17 9 23 7 21 parse_system 19 | . . . . . . . 2 1 1 2 . . 1 2 . . . . . 5 3 1 1 . . . . find_chute 2 | . . . . . . . 1 . . . . . 1 . . . . . . . . . . . . . . drop_inventory 13 | . . . . . . . . . . . 3 . 2 . 1 . . . 1 . 2 1 1 . 1 . 1 purge_threat 23 | . . . . . . . . . 3 . . . 3 . 2 . . . 5 . 2 4 . . 4 . . block_reporting 4 | . . . . . . . . . . . . . 1 . 1 . . . 1 . 1 . . . . . . map_route 3 | . . . . . . . . . . . . . . . . . . . . . . . . . . . 3 redirect_shields 1 | . . . . . . . . . . . . . . . . . . . . . . . 1 . . . . disable_scanner 3 | . . . . . . . . . . . . . . . . . . . . . . 3 . . . . . find_garrison 5 | . . . . . . . . . 1 . . . 1 . . . . . 2 . . . 1 . . . . link_fov 1 | . . . . . . . . . . . . . . . . . . . . . . . . . . . 1 overload_power 2 | . . . . . . . 1 1 . . . . . . . . . . . . . . . . . . . amplify_resonance 39 | . . . . . . . . 1 . 1 1 . 1 2 . 2 1 4 3 4 6 6 . . 2 3 2 overwrite_iff 54 | . . . . . . 3 2 2 . 3 1 4 2 5 1 2 . 3 1 5 5 3 1 2 3 3 3 formatsys_low 18 | . . . . . . . 2 . 1 . 2 . 2 . 1 . . . 2 . 3 2 . . 2 . 1 formatsys_high 87 | . . . . . . . . 3 . 3 2 6 5 6 4 4 1 2 5 2 3 1 12 7 11 1 9 formatsys_deep 1 | . . . . . . . . . . . . . . . . . . . . . . . . . . . 1 Relay Couplers Released 165 | . . . . 4 . 4 4 10 . 9 3 22 . 18 . 22 . 11 3 18 4 . 2 21 1 9 . Ejected 7 | . . . . . . . 4 . . . 3 . . . . . . . . . . . . . . . . Machine Destruction 155 | . . . . 4 . 4 . 10 . 9 . 22 . 18 . 22 . 11 . 18 4 . 2 21 1 9 . Programmers 3 | . . . . . . . . . . . . . . . . . . . 3 . . . . . . . . Attached 51 | . . . . . . 1 2 2 1 2 1 3 3 5 3 2 1 2 6 1 1 2 3 3 4 1 2 Merged Code Value 136 | . . . . . . . . . . . . . . . . . . . . 48 18 . . 23 11 36 . Fabnet Peak Effective % . | . . . . . . . . . . . . . . . . . . . . . . . . . . . . Robots Rewired 43 | . . . . 3 . . . 4 . 3 . . . . . 3 . 5 . 22 . . . 3 . . . Allies Hacked 7 | . . . . . . . . 1 . . . . 1 . 1 . . 1 . . 2 . . . . . 1 Hacks Repelled . | . . . . . . . . . . . . . . . . . . . . . . . . . . . . Allies | -11 -10 -10 -8 -8 -8 -8 -7 -7 -7 -7 -7 -7 -6 -6 -5 -5 -4 -4 -4 -4 -3 -3 -2 -2 -2 -2 -1 -------- Run | Yrd Mat Sub Mat Gar Mat Gar Fac Gar Fac Gar Fac Gar Fac Gar Fac Gar Fac Gar Fac Gar Res Tes Res Gar Res Gar Acc Total Allies 310 | . . . 8 3 4 4 7 12 1 12 6 12 14 16 6 19 1 14 14 36 22 9 21 15 22 9 23 Largest Group 23 | . . . 7 3 4 2 5 9 6 9 8 3 6 7 10 11 11 6 10 23 22 2 4 7 7 2 8 Highest-Rated Group 1295 | . . . 156 81 120 60 112 269 239 283 193 94 158 286 451 543 543 607 663 1295 1175 99 429 489 483 148 584 Highest-Rated Ally 219 | . . . 24 31 30 30 26 80 80 80 32 62 47 80 142 64 64 148 148 148 148 52 148 148 219 148 219 Total Orders 27 | . . . . . . . 1 6 1 1 1 . . . . . . 2 3 4 4 . . . 4 . . STAY 5 | . . . . . . . . 3 . . . . . . . . . 1 . 1 . . . . . . . ROAM 1 | . . . . . . . . . . . . . . . . . . . . 1 . . . . . . . FOLLOW 4 | . . . . . . . . 2 . . . . . . . . . 1 . 1 . . . . . . . AID 12 | . . . . . . . 1 1 1 1 1 . . . . . . . 3 1 2 . . . 1 . . EXPLORE 5 | . . . . . . . . . . . . . . . . . . . . . 2 . . . 3 . . Ally Attacks 1851 | . . . 39 23 24 7 28 54 8 65 39 51 58 61 39 66 53 72 183 81 212 31 220 84 185 30 138 Total Damage 63528 | . . . 703 511 600 254 549 1806 203 2286 1168 1340 1224 1666 1252 1801 2047 2133 6997 2816 7231 711 7377 2238 8428 1279 6908 Kills 454 | . . . 13 3 8 2 6 15 3 26 13 7 17 14 8 20 13 20 53 21 46 4 38 13 44 6 41 Allies Corrupted 21 | . . . . . . . . . . 1 . 1 . . 1 1 2 1 . . 5 . . . 5 1 3 Allies Melted 4 | . . . . . . . . . . . . . . . . . . . . . 1 . 2 1 . . . X0-1V1 Amusement Gains 178 | . 5 15 75 . . 4 . . 10 . . . 3 . . . . . . . . 27 . 20 19 . . Good Acts 185 | . . 6 20 7 4 1 4 8 6 4 1 3 4 4 2 11 9 9 14 7 3 8 10 7 9 4 20 Bad Acts 102 | . . 3 7 1 . . . . 2 4 3 9 4 4 4 5 . 4 6 3 2 11 7 3 16 4 . Intel | -11 -10 -10 -8 -8 -8 -8 -7 -7 -7 -7 -7 -7 -6 -6 -5 -5 -4 -4 -4 -4 -3 -3 -2 -2 -2 -2 -1 ------- Run | Yrd Mat Sub Mat Gar Mat Gar Fac Gar Fac Gar Fac Gar Fac Gar Fac Gar Fac Gar Fac Gar Res Tes Res Gar Res Gar Acc Active Infowar (turns) 145 | . . . . . . . . . . . . . . . . . 145 . . . . . . . . . . IFF 145 | . . . . . . . . . . . . . . . . . 145 . . . . . . . . . . Robot Analysis Total . | . . . . . . . . . . . . . . . . . . . . . . . . . . . . Derelict Logs Recovered . | . . . . . . . . . . . . . . . . . . . . . . . . . . . . Drone Launches 7 | . . . . . . . . . . . . . . . . . . . . . 2 . . . 5 . . Drone Recoveries 2 | . . . . . . . . . . . . . . . . . . . . . 1 . . . 1 . . Exploration | -11 -10 -10 -8 -8 -8 -8 -7 -7 -7 -7 -7 -7 -6 -6 -5 -5 -4 -4 -4 -4 -3 -3 -2 -2 -2 -2 -1 ------------- Run | Yrd Mat Sub Mat Gar Mat Gar Fac Gar Fac Gar Fac Gar Fac Gar Fac Gar Fac Gar Fac Gar Res Tes Res Gar Res Gar Acc Turns Passed 37383 | 80 3385 1966 2407 862 345 636 627 1073 584 1004 976 1361 1490 1172 686 1335 803 1280 1791 1447 1646 2567 1305 1518 2687 779 1571 Spaces Moved 17404 | 45 1334 700 1167 502 156 256 236 519 309 441 548 664 780 664 500 778 464 721 948 670 758 953 609 588 1066 279 749 Core 200 | 1 . . . . . . . . . . . . . . . . . . . . . . . . . . 199 Treads 14143 | 44 1334 700 807 . . . 234 519 309 441 548 664 780 293 . 171 464 721 948 670 758 691 609 588 1066 279 505 Legs 3016 | . . . 360 502 156 256 2 . . . . . . 371 500 607 . . . . . 262 . . . . . Wheels . | . . . . . . . . . . . . . . . . . . . . . . . . . . . . Hover . | . . . . . . . . . . . . . . . . . . . . . . . . . . . . Flight 45 | . . . . . . . . . . . . . . . . . . . . . . . . . . . 45 Fastest Speed 37 | 50 160 240 123 126 186 186 162 160 160 163 163 163 160 102 102 105 153 153 153 153 153 158 150 150 190 208 37 Average Speed 176 | 157 209 264 162 135 186 187 225 166 162 163 163 163 160 130 103 145 154 153 153 153 194 222 155 226 214 211 159 Slowest Speed 400 | 160 240 400 243 196 196 192 242 242 163 163 163 163 163 310 105 305 158 153 237 153 237 238 232 235 235 212 228 Overloaded Moves . | . . . . . . . . . . . . . . . . . . . . . . . . . . . . Propulsion Burnouts . | . . . . . . . . . . . . . . . . . . . . . . . . . . . . Robots Hopped . | . . . . . . . . . . . . . . . . . . . . . . . . . . . . Potential Cave-ins 1 | . . . . . . . . . . . . . . . . . . . . 1 . . . . . . . Cave-ins Triggered . | . . . . . . . . . . . . . . . . . . . . . . . . . . . . Exploration Rate (%) 51 | 3 99 31 93 66 26 44 9 66 13 59 20 92 25 90 18 98 14 90 39 79 39 94 23 90 44 53 32 Regions Visited 27 Branch Regions 2 Pre-discovered Areas 3 | . 2 1 . . . . . . . . . . . . . . . . . . . . . . . . . Known Exits Taken 13 | . . 1 1 . 1 . 1 . 1 . 1 . 1 . 1 . 1 . 1 . 1 . 1 . 1 . . Unknown Exits Taken 3 | 1 1 . . . . . . . . . . . . . . . . . . . . 1 . . . . . Scrap Searched 1 | . . 1 . . . . . . . . . . . . . . . . . . . . . . . . . Spaces Dug 84 | . . . 4 1 . 4 . 6 4 . . . . . . . . 7 . 8 5 3 3 . 5 . 34 Terrain Destroyed 1042 | . 5 81 21 1 5 20 . 6 13 . . 54 . 101 1 15 4 12 11 19 11 70 49 42 71 18 412 Melee 10 | . . . . 1 . 4 . 1 4 . . . . . . . . . . . . . . . . . . Projectile 222 | . 5 . 21 . 5 1 . . . . . 1 . 2 1 2 4 12 11 19 11 42 36 4 28 2 15 AOE 810 | . . 81 . . . 15 . 5 9 . . 53 . 99 . 13 . . . . . 28 13 38 43 16 397 Terrain Rammed . | . . . . . . . . . . . . . . . . . . . . . . . . . . . . Walls Destroyed . | . . . . . . . . . . . . . . . . . . . . . . . . . . . . Machines Disabled . | . . . . . . . . . . . . . . . . . . . . . . . . . . . . Actions | -11 -10 -10 -8 -8 -8 -8 -7 -7 -7 -7 -7 -7 -6 -6 -5 -5 -4 -4 -4 -4 -3 -3 -2 -2 -2 -2 -1 --------- Run | Yrd Mat Sub Mat Gar Mat Gar Fac Gar Fac Gar Fac Gar Fac Gar Fac Gar Fac Gar Fac Gar Res Tes Res Gar Res Gar Acc Total 22322 | 51 1798 768 1484 608 190 352 319 645 379 619 625 814 956 854 613 951 543 852 1243 1023 872 1227 943 765 1437 416 975 Wait 1917 | . 366 6 125 10 14 17 52 17 31 61 49 21 71 37 45 52 57 45 206 218 16 63 113 23 103 43 56 Move 17385 | 44 1333 699 1167 501 156 255 235 518 309 440 547 663 780 663 500 777 464 720 948 668 757 953 609 587 1066 278 748 Hop . | . . . . . . . . . . . . . . . . . . . . . . . . . . . . Pick Up 259 | 1 14 11 24 10 3 5 4 13 7 7 5 11 12 12 3 21 2 9 8 5 5 16 10 16 13 4 8 Fast Attach 92 | 6 6 2 9 3 1 1 . 2 2 2 1 2 2 9 1 3 2 1 2 . 4 11 2 2 6 . 10 Attach 102 | . . 3 8 1 . 2 4 1 . . . 3 4 3 2 4 1 2 1 1 3 12 4 3 9 4 27 Detach 47 | . . 1 3 . . 2 1 . . . 1 . . 3 . 3 . 1 1 . . 5 4 . 4 . 18 Swap 369 | . 6 7 17 11 1 14 8 21 6 16 3 29 23 24 12 17 4 7 17 7 15 29 21 13 30 11 . Drop 207 | . 6 2 19 6 4 6 2 12 7 9 4 8 7 14 3 19 4 8 8 2 2 18 10 11 7 3 6 Fire 1640 | . 55 35 107 28 11 27 11 32 10 37 10 68 48 83 40 38 3 58 45 119 60 113 159 93 187 73 90 Melee 90 | . . . . 9 . 7 . 24 6 39 . 5 . . . . . . . . . . . . . . . Ram 3 | . . . . . . . . . . . . . . . . . . . . . . . . . 1 . 2 Kick 3 | . . . . . . . . . . . . . . . 3 . . . . . . . . . . . . Crush 65 | . 12 . 2 . . . 1 . . . 1 . 3 . . . 5 . 5 . 5 6 9 2 6 . 8 Escape Stasis 48 | . . . . . . 15 . . . . . . . 5 . 15 . 1 . . . . . 10 2 . . Rewire 71 | . . . . 28 . . 1 4 1 6 3 2 3 . 2 2 1 . 2 1 3 . 2 5 3 . 2 Trap 4 | . . . . . . . . . . . . . 3 . . . . . . . . 1 . . . . . Miscellaneous 20 | . . 2 3 1 . 1 . 1 . 2 1 2 . 1 2 . . . . 2 2 . . . . . . Route ------- -11/Scrapyard -10/Materials (discovered 5 exits: [*Mat x3] / [*Min] / *Sub) -10/Subcaves (discovered 3 exits: *Mat x2 / [*Rec]) -8/Materials (discovered 4 exits: *Fac x3 / Gar) -8/Garrison (discovered 3 exits: *Mat x3) -8/Materials (discovered 2 exits: *Fac / Gar) -8/Garrison (discovered 3 exits: *Fac x3) -7/Factory (discovered 2 exits: *Fac / Gar) -7/Garrison (discovered 3 exits: *Fac x3) -7/Factory (discovered 4 exits: Fac / *Low x2 / Gar) -7/Garrison (discovered 4 exits: Fac x3 / *Fac) -7/Factory (discovered 2 exits: *Fac / Gar) -7/Garrison (discovered 3 exits: *Fac x3) -6/Factory (discovered 3 exits: Fac / Low / Gar) -6/Garrison (discovered 3 exits: *Fac x3) -5/Factory -5/Garrison (discovered 3 exits: *Fac x3) -4/Factory (discovered 2 exits: Arm / Gar) -4/Garrison (discovered 4 exits: *Res x3 / *Fac) -4/Factory (discovered 3 exits: *Res x2 / Gar) -4/Garrison (discovered 3 exits: *Res x3) -3/Research (discovered 2 exits: *Tes x2) -3/Testing -2/Research (discovered 5 exits: *Acc x2 / [*Qua x2] / Gar) -2/Garrison (discovered 3 exits: *Res x3) -2/Research -2/Garrison (discovered 2 exits: *Acc x2) -1/Access (discovered 2 exits: [*Sur] / Com) To Epsilon Eridani History --------- Turn | Location | Event 21 | -11/Scrapyard | Discovered new exit (range 16) 81 | -11/Scrapyard | Entered Materials 82 | -10/Materials | Met a group of wandering Federalists 225 | -10/Materials | Discovered new exit (range 11) 329 | -10/Materials | Build established: Mutant 416 | -10/Materials | Discovered new exit (range 11) 616 | -10/Materials | Discovered new exit (range 12) 1069 | -10/Materials | Discovered new exit (range 9) 2341 | -10/Materials | Discovered new exit (range 14) 2385 | -10/Materials | Repaired Imp. Light Cannon 3454 | -10/Materials | Prayed at D.C.S.S. Altar Unit 3466 | -10/Materials | Entered Subcaves 3467 | -10/Subcaves | Continued accompanying wandering Federalists (3) 3467 | -10/Subcaves | Approached by a straggling Scientist 3717 | -10/Subcaves | Identified exit to Materials 3717 | -10/Subcaves | X0-1V1 revealed exit location to -8/Materials 3772 | -10/Subcaves | Matter capacity permanently improved by X0-1V1 (+200) 4047 | -10/Subcaves | Ambushed by Subdweller buried in earth 4075 | -10/Subcaves | X0-1V1 mutated your Weapon slot to Utility slot 4092 | -10/Subcaves | X0-1V1 revealed exit location to -8/Materials 4239 | -10/Subcaves | Core integrity restored by X0-1V1 (+27) 4436 | -10/Subcaves | Discovered new exit (range 15) 4742 | -10/Subcaves | Build established: Subdweller-Mutant 4842 | -10/Subcaves | Visited Clippyterm 4849 | -10/Subcaves | Learned Factory garrison access intel 4849 | -10/Subcaves | Learned location of Section 7 (-2) 4943 | -10/Subcaves | Core integrity restored by X0-1V1 (+27) 5017 | -10/Subcaves | Visited 4L-MR0's lab 5062 | -10/Subcaves | Found Prototype Device 5074 | -10/Subcaves | Found Cargo Legs 5292 | -10/Subcaves | Build established: Mutant 5432 | -10/Subcaves | Entered Materials 5432 | -8/Materials | Evolved 4 slots: Propulsion x2, Utility x1, Weapon x1 5595 | -8/Materials | X0-1V1 announced a LAN party 5657 | -8/Materials | X0-1V1 added 0b10 threat records associated with you (minor) 5840 | -8/Materials | Discovered new exit (range 8) 5944 | -8/Materials | X0-1V1 activates XOMVISION 6040 | -8/Materials | Energy capacity permanently improved by X0-1V1 (+200) 6255 | -8/Materials | Heat dissipation permanently improved by X0-1V1 (+15) 6300 | -8/Materials | Build established: Scavenger-Mutant 6315 | -8/Materials | X0-1V1 foreshadows a heat wave 6319 | -8/Materials | X0-1V1 sent allied X-57 Shotgunner (x4) 6416 | -8/Materials | X0-1V1 sent you to a vault 6534 | -8/Materials | Ambient heat levels rising (+10) 6576 | -8/Materials | X0-1V1 activates XOMVISION 6747 | -8/Materials | Ambient heat levels rising (+10) 6769 | -8/Materials | Identified exit to Factory 6769 | -8/Materials | X0-1V1 revealed exit location to -7/Factory 6971 | -8/Materials | Ambient heat levels falling (-10) 7202 | -8/Materials | X0-1V1 activates XOMVISION 7215 | -8/Materials | Ambient heat levels falling (-10) 7236 | -8/Materials | Attached Cargo Legs, gained temporary slots: Utility x2 7321 | -8/Materials | Core integrity restored by X0-1V1 (+68) 7349 | -8/Materials | Build established: Mutant 7463 | -8/Materials | Discovered exit to Factory (range 10) 7609 | -8/Materials | Central database locked down 7681 | -8/Materials | X0-1V1 sent you into danger 7839 | -8/Materials | Identified exit to Garrison 7839 | -8/Materials | Entered Garrison 7839 | -8/Garrison | Warlord forces raided the area 7867 | -8/Garrison | Identified exit to Materials 7867 | -8/Garrison | X0-1V1 revealed exit location to -8/Materials 7879 | -8/Garrison | Triggered checkpoint 7933 | -8/Garrison | Triggered checkpoint 7937 | -8/Garrison | Triggered checkpoint 7941 | -8/Garrison | Triggered checkpoint 7946 | -8/Garrison | Triggered checkpoint 8047 | -8/Garrison | Triggered checkpoint 8103 | -8/Garrison | Discovered exit to Materials (range 75) 8103 | -8/Garrison | Discovered exit to Materials (range 45) 8103 | -8/Garrison | Discovered exit to Materials (range 63) 8219 | -8/Garrison | Garrison Relay disabled 8256 | -8/Garrison | Installed Relay Interface Framework 8281 | -8/Garrison | Core integrity restored by X0-1V1 (+57) 8302 | -8/Garrison | Warlord forces retreated 8337 | -8/Garrison | Triggered checkpoint 8382 | -8/Garrison | Expanded RIF knowledge: Signal Jamming 8408 | -8/Garrison | X0-1V1 destroyed Phase Generator 8408 | -8/Garrison | Phase Generator disabled 8526 | -8/Garrison | X0-1V1 sent hostile L-31 Rogue (x2) 8541 | -8/Garrison | Expanded RIF knowledge: Autoassimilate 8701 | -8/Garrison | Entered Materials 8800 | -8/Materials | X0-1V1 sent you to a vault 8825 | -8/Materials | Discovered exit to Factory (range 20) 8888 | -8/Materials | Build established: Bothacker-Mutant 9031 | -8/Materials | Garrison activated, responded to threat 9046 | -8/Materials | Identified exit to Garrison 9046 | -8/Materials | Entered Garrison 9046 | -8/Garrison | Accompanied by 2 allies 9174 | -8/Garrison | Discovered exit to Factory (range 69) 9174 | -8/Garrison | Discovered exit to Factory (range 49) 9174 | -8/Garrison | Discovered exit to Factory (range 56) 9220 | -8/Garrison | Triggered checkpoint 9332 | -8/Garrison | Identified Sfc. Transmogrifier 9361 | -8/Garrison | Garrison Relay disabled 9419 | -8/Garrison | Triggered checkpoint 9440 | -8/Garrison | Core integrity fell below 50% 9450 | -8/Garrison | Core integrity restored by X0-1V1 (+57) 9465 | -8/Garrison | Lost 3 allies 9468 | -8/Garrison | Destroyed 9 combat bots 9480 | -8/Garrison | Triggered checkpoint 9639 | -8/Garrison | Expanded RIF knowledge: Patrol Navigation 9682 | -8/Garrison | Entered Factory 9682 | -7/Factory | Accompanied by 1 ally 9682 | -7/Factory | Evolved 2 slots: Utility x2 9683 | -7/Factory | Loaded intel: 4 garrison access locations 9923 | -7/Factory | Build established: Botlord-Mutant 9983 | -7/Factory | Discovered new exit (range 6) 10117 | -7/Factory | Garrison activated, responded to threat 10206 | -7/Factory | X0-1V1 sent allied X-57 Shotgunner (x3) 10303 | -7/Factory | Identified exit to Garrison 10309 | -7/Factory | Entered Garrison 10309 | -7/Garrison | Accompanied by 4 allies 10397 | -7/Garrison | Triggered checkpoint 10465 | -7/Garrison | Garrison Relay disabled 10590 | -7/Garrison | Identified exit to Factory 10590 | -7/Garrison | X0-1V1 revealed exit location to -7/Factory 10733 | -7/Garrison | Triggered checkpoint 10737 | -7/Garrison | Triggered checkpoint 10786 | -7/Garrison | Lost 4 allies 10883 | -7/Garrison | Discovered exit to Factory (range 73) 10883 | -7/Garrison | Discovered exit to Factory (range 69) 10883 | -7/Garrison | Discovered exit to Factory (range 26) 10908 | -7/Garrison | Found embedded Infiltrators 10965 | -7/Garrison | Triggered checkpoint 11007 | -7/Garrison | Triggered checkpoint 11007 | -7/Garrison | Lost 4 allies 11077 | -7/Garrison | Expanded RIF knowledge: Autoassimilate 11117 | -7/Garrison | Triggered checkpoint 11142 | -7/Garrison | Garrison Relay disabled 11185 | -7/Garrison | Expanded RIF knowledge: Hotswap 11382 | -7/Garrison | Entered Factory 11382 | -7/Factory | Accompanied by 5 allies 11447 | -7/Factory | Identified exit to Lower Caves 11447 | -7/Factory | X0-1V1 revealed exit location to -7/Lower Caves 11543 | -7/Factory | X0-1V1 mutated your Utility slot to Propulsion slot 11753 | -7/Factory | Discovered exit to Lower Caves (range 8) 11804 | -7/Factory | Identified exit to Factory 11804 | -7/Factory | X0-1V1 revealed exit location to -6/Factory 11966 | -7/Factory | Identified exit to Garrison 11966 | -7/Factory | Entered Garrison 11966 | -7/Garrison | Accompanied by 6 allies 11984 | -7/Garrison | Triggered checkpoint 12028 | -7/Garrison | Triggered checkpoint 12037 | -7/Garrison | Garrison Relay disabled 12088 | -7/Garrison | Garrison Relay disabled 12131 | -7/Garrison | Identified exit to Factory 12131 | -7/Garrison | X0-1V1 revealed exit location to -7/Factory 12242 | -7/Garrison | Triggered checkpoint 12256 | -7/Garrison | Triggered checkpoint 12304 | -7/Garrison | Triggered checkpoint 12316 | -7/Garrison | P-60 Hacker assimilated allied QE-8HA(x) 12330 | -7/Garrison | X0-1V1 activates XOMVISION 12357 | -7/Garrison | Lost 4 allies 12398 | -7/Garrison | Triggered checkpoint 12420 | -7/Garrison | X0-1V1 destroyed Phase Generator 12420 | -7/Garrison | Phase Generator disabled 12438 | -7/Garrison | Expanded RIF knowledge: Alert ID Control 12473 | -7/Garrison | Discovered exit to Factory (range 53) 12473 | -7/Garrison | Discovered exit to Factory (range 16) 12473 | -7/Garrison | Discovered exit to Factory (range 101) 12473 | -7/Garrison | Discovered exit to Factory (range 79) 12558 | -7/Garrison | Triggered checkpoint 12612 | -7/Garrison | Triggered checkpoint 12636 | -7/Garrison | P-60 Hacker assimilated allied Guardian 4e 12657 | -7/Garrison | Garrison Relay disabled 12948 | -7/Garrison | Triggered checkpoint 12970 | -7/Garrison | Entered Factory 12970 | -7/Factory | Accompanied by 5 allies 13245 | -7/Factory | Found Powered Armor 13707 | -7/Factory | Discovered exit to Factory (range 8) 13777 | -7/Factory | X0-1V1 added 0b10 threat records associated with you (considerable) 13796 | -7/Factory | X0-1V1 rewrote Guardian 4h IFF filter 13809 | -7/Factory | Lost 3 allies 13893 | -7/Factory | Identified exit to Garrison 13946 | -7/Factory | Entered Garrison 13946 | -7/Garrison | Accompanied by 2 allies 13996 | -7/Garrison | Expanded RIF knowledge: Coupler Efficiency 14011 | -7/Garrison | P-60 Hacker assimilated allied Technician 4a 14046 | -7/Garrison | Triggered checkpoint 14091 | -7/Garrison | Garrison Relay disabled 14185 | -7/Garrison | X0-1V1 vaporized surrounding terrain (radius 19) 14200 | -7/Garrison | Garrison Relay disabled 14264 | -7/Garrison | Triggered checkpoint 14281 | -7/Garrison | X0-1V1 sent hostile Y-45 Defender (x1) 14281 | -7/Garrison | Triggered checkpoint 14466 | -7/Garrison | Garrison Relay disabled 14540 | -7/Garrison | Discovered exit to Factory (range 5) 14610 | -7/Garrison | Triggered checkpoint 14630 | -7/Garrison | Core integrity restored by X0-1V1 (+68) 14810 | -7/Garrison | X0-1V1 activates XOMVISION 14849 | -7/Garrison | X0-1V1 vaporized surrounding terrain (radius 16) 14857 | -7/Garrison | Triggered checkpoint 14864 | -7/Garrison | Triggered checkpoint 14907 | -7/Garrison | System corruption reached 10% 14916 | -7/Garrison | Lost 5 allies 14916 | -7/Garrison | Garrison Relay disabled 15024 | -7/Garrison | Discovered exit to Factory (range 10) 15176 | -7/Garrison | Discovered exit to Factory (range 15) 15192 | -7/Garrison | Triggered checkpoint 15216 | -7/Garrison | Garrison Relay disabled 15307 | -7/Garrison | Entered Factory 15307 | -6/Factory | Accompanied by 2 allies 15307 | -6/Factory | Evolved 2 slots: Utility x2 15412 | -6/Factory | Lost 4 allies 15482 | -6/Factory | Identified exit to Factory 15482 | -6/Factory | X0-1V1 revealed exit location to -5/Factory 16321 | -6/Factory | Lost 3 allies 16780 | -6/Factory | Identified exit to Garrison 16782 | -6/Factory | Identified exit to Lower Caves 16782 | -6/Factory | X0-1V1 revealed exit location to -6/Lower Caves 16797 | -6/Factory | Entered Garrison 16797 | -6/Garrison | Accompanied by 5 allies 16849 | -6/Garrison | Triggered checkpoint 16867 | -6/Garrison | Garrison Relay disabled 16890 | -6/Garrison | Found embedded Infiltrators 16939 | -6/Garrison | P-60 Hacker assimilated allied A2-SY9(x) 16974 | -6/Garrison | Lost 3 allies 16992 | -6/Garrison | Triggered checkpoint 16995 | -6/Garrison | Triggered checkpoint 17008 | -6/Garrison | Triggered checkpoint 17045 | -6/Garrison | Lost 7 allies 17102 | -6/Garrison | X0-1V1 rewrote Guardian 5d IFF filter 17144 | -6/Garrison | Discovered exit to Factory (range 10) 17271 | -6/Garrison | Triggered checkpoint 17311 | -6/Garrison | Triggered checkpoint 17321 | -6/Garrison | Garrison Relay disabled 17392 | -6/Garrison | Phase Generator disabled 17398 | -6/Garrison | Spotted Executioner 17400 | -6/Garrison | Spotted Executioner 17421 | -6/Garrison | Weapon slot count temporarily expanded by X0-1V1 (+1) 17437 | -6/Garrison | Destroyed Executioner 17443 | -6/Garrison | Core integrity fell below 50% 17457 | -6/Garrison | Destroyed Executioner 17497 | -6/Garrison | Found Exp. Targeting Computer 17526 | -6/Garrison | Found Exp. Core Analyzer 17554 | -6/Garrison | Expanded RIF knowledge: Structural Interface 17605 | -6/Garrison | Triggered checkpoint 17616 | -6/Garrison | Garrison Relay disabled 17679 | -6/Garrison | Discovered exit to Factory (range 10) 17723 | -6/Garrison | Build established: Botlord-Tank 17789 | -6/Garrison | Triggered checkpoint 17848 | -6/Garrison | Garrison Relay disabled 17911 | -6/Garrison | Discovered exit to Factory (range 9) 17919 | -6/Garrison | Triggered checkpoint 17963 | -6/Garrison | Core integrity restored by X0-1V1 (+97) 17969 | -6/Garrison | Entered Factory 17969 | -5/Factory | Accompanied by 4 allies 17969 | -5/Factory | Evolved 2 slots: Power x1, Utility x1 18083 | -5/Factory | X0-1V1 sent someone to keep an eye on you 18165 | -5/Factory | Build established: Botlord-Mutant 18551 | -5/Factory | Lost 4 allies 18655 | -5/Factory | Identified exit to Garrison 18655 | -5/Factory | Entered Garrison 18655 | -5/Garrison | Accompanied by 4 allies 18670 | -5/Garrison | Triggered checkpoint 18693 | -5/Garrison | Garrison Relay disabled 18717 | -5/Garrison | X0-1V1 destroyed Phase Generator 18717 | -5/Garrison | Phase Generator disabled 18925 | -5/Garrison | Triggered checkpoint 18928 | -5/Garrison | Triggered checkpoint 18930 | -5/Garrison | X0-1V1 upgraded ally (x5) 18949 | -5/Garrison | Triggered checkpoint 18963 | -5/Garrison | Identified exit to Factory 18963 | -5/Garrison | X0-1V1 revealed exit location to -4/Factory 18988 | -5/Garrison | Lost 3 parts (1u2w) 19049 | -5/Garrison | Discovered exit to Factory (range 5) 19077 | -5/Garrison | Triggered checkpoint 19117 | -5/Garrison | Garrison Relay disabled 19342 | -5/Garrison | Expanded RIF knowledge: Program Shield 19366 | -5/Garrison | Discovered exit to Factory (range 12) 19379 | -5/Garrison | Triggered checkpoint 19393 | -5/Garrison | Garrison Relay disabled 19421 | -5/Garrison | Garrison Relay disabled 19483 | -5/Garrison | X0-1V1 activates XOMVISION 19569 | -5/Garrison | Triggered checkpoint 19809 | -5/Garrison | Triggered checkpoint 19831 | -5/Garrison | Garrison Relay disabled 19990 | -5/Garrison | X0-1V1 activates XOMVISION 19990 | -5/Garrison | Entered Factory 19990 | -4/Factory | Accompanied by 11 allies 19990 | -4/Factory | Evolved 2 slots: Utility x2 20260 | -4/Factory | Identified exit to Armory 20260 | -4/Factory | X0-1V1 revealed exit location to -4/Armory 20338 | -4/Factory | Repaired Broken Helical Railgun 20455 | -4/Factory | Central database locked down 20743 | -4/Factory | X0-1V1 activates XOMVISION 20792 | -4/Factory | Identified exit to Garrison 20793 | -4/Factory | Entered Garrison 20793 | -4/Garrison | Accompanied by 2 allies 20793 | -4/Garrison | Spotted B-75 Beast 20798 | -4/Garrison | Autoassimilated Beast 7a with RIF 20803 | -4/Garrison | Spotted B-90 Cyclops 20813 | -4/Garrison | Assimilated Cyclops 7a with formatsys_high 20818 | -4/Garrison | Lost 6 allies 20821 | -4/Garrison | Rewired B-90 Cyclops 20828 | -4/Garrison | Rewired B-90 Cyclops 20843 | -4/Garrison | Found Quantum Capacitor 20967 | -4/Garrison | Found Relay Coupler [Proto] 20970 | -4/Garrison | Found Relay Coupler [Proto] 21070 | -4/Garrison | H-XX Assembler disabled 21079 | -4/Garrison | Triggered checkpoint 21107 | -4/Garrison | X0-1V1 rewrote Cyclops 7b IFF filter 21110 | -4/Garrison | Allies destroyed Cyclops 7b 21174 | -4/Garrison | Triggered checkpoint 21179 | -4/Garrison | Triggered checkpoint 21188 | -4/Garrison | Triggered checkpoint 21199 | -4/Garrison | Triggered checkpoint 21237 | -4/Garrison | Discovered new exit (range 10) 21249 | -4/Garrison | Triggered checkpoint 21267 | -4/Garrison | Garrison Relay disabled 21428 | -4/Garrison | Rescued a captive Derelict 21441 | -4/Garrison | Triggered checkpoint 21514 | -4/Garrison | Garrison Relay disabled 21589 | -4/Garrison | Discovered new exit (range 14) 21745 | -4/Garrison | X0-1V1 activates XOMVISION 21747 | -4/Garrison | Expanded RIF knowledge: Code Merge 21751 | -4/Garrison | Triggered checkpoint 21787 | -4/Garrison | Garrison Relay disabled 21803 | -4/Garrison | Triggered checkpoint 21833 | -4/Garrison | Discovered new exit (range 3) 21902 | -4/Garrison | Discovered new exit (range 14) 22073 | -4/Garrison | Entered Factory 22073 | -4/Factory | Accompanied by 5 allies 22199 | -4/Factory | X0-1V1 sent you to a vault 22326 | -4/Factory | Found Quantum Capacitor 22502 | -4/Factory | Garrison activated, responded to threat 22537 | -4/Factory | Lost 3 allies 22864 | -4/Factory | Discovered new exit (range 12) 23097 | -4/Factory | Discovered new exit (range 14) 23154 | -4/Factory | X0-1V1 activates XOMVISION 23182 | -4/Factory | X0-1V1 added 0b10 threat records associated with you (major) 23401 | -4/Factory | Identified exit to Garrison 23493 | -4/Factory | Spotted B-86 Titan 23493 | -4/Factory | X0-1V1 sent you into danger 23496 | -4/Factory | Assimilated Titan 7a with formatsys_high 23817 | -4/Factory | Identified exit to Garrison 23864 | -4/Factory | Entered Garrison 23864 | -4/Garrison | Accompanied by 4 allies 23935 | -4/Garrison | Identified exit to Research 23935 | -4/Garrison | X0-1V1 revealed exit location to -3/Research 23966 | -4/Garrison | Triggered checkpoint 24018 | -4/Garrison | Garrison Relay disabled 24066 | -4/Garrison | Spotted B-86 Titan 24067 | -4/Garrison | Autoassimilated Titan 7b with RIF 24072 | -4/Garrison | Spotted B-90 Cyclops 24118 | -4/Garrison | Assimilated Cyclops 7d with formatsys_high 24124 | -4/Garrison | Rewired B-75 Beast 24131 | -4/Garrison | Rewired B-75 Beast 24245 | -4/Garrison | Lost 6 allies 24304 | -4/Garrison | Lost 3 allies 24316 | -4/Garrison | Triggered checkpoint 24324 | -4/Garrison | Triggered checkpoint 24356 | -4/Garrison | Triggered checkpoint 24374 | -4/Garrison | Lost 4 allies 24374 | -4/Garrison | Triggered checkpoint 24420 | -4/Garrison | Garrison Relay disabled 24434 | -4/Garrison | Triggered checkpoint 24616 | -4/Garrison | Triggered checkpoint 24625 | -4/Garrison | Discovered exit to Research (range 46) 24625 | -4/Garrison | Discovered exit to Research (range 22) 24625 | -4/Garrison | Discovered exit to Research (range 27) 24656 | -4/Garrison | Expanded RIF knowledge: Coupler Efficiency 24770 | -4/Garrison | Triggered checkpoint 24777 | -4/Garrison | Garrison Relay disabled 24804 | -4/Garrison | Triggered checkpoint 24811 | -4/Garrison | Garrison Relay disabled 25311 | -4/Garrison | Entered Research 25311 | -3/Research | Accompanied by 21 allies 25311 | -3/Research | Evolved 2 slots: Power x1, Utility x1 25419 | -3/Research | Allies destroyed Beast 7c 25498 | -3/Research | Discovered new exit (range 16) 25708 | -3/Research | Lost 3 allies 25746 | -3/Research | X0-1V1 sent you to a vault 25860 | -3/Research | Found Centrium Heavy Armor Plating 26020 | -3/Research | Lost 9 allies 26064 | -3/Research | Identified exit to Testing 26207 | -3/Research | Lost 4 allies 26759 | -3/Research | System corruption reached 10% 26880 | -3/Research | Central database locked down 26957 | -3/Research | Entered Testing 26957 | -3/Testing | Accompanied by 1 ally 27020 | -3/Testing | Found Prototype Launcher 27020 | -3/Testing | Identified Mni. Smartbomb Launcher 27105 | -3/Testing | Found Prototype Device 27105 | -3/Testing | Identified 2N-1CE's Frost Array 27121 | -3/Testing | X0-1V1 vaporized surrounding terrain (radius 17) 27180 | -3/Testing | X0-1V1 whisked you away to safety 27185 | -3/Testing | Lost 3 allies 27188 | -3/Testing | X0-1V1 activates XOMVISION 27207 | -3/Testing | Lost 3 parts (1p2u) 27568 | -3/Testing | X0-1V1 added 0b10 threat records associated with you (considerable) 27707 | -3/Testing | Search patrols dispatched 27876 | -3/Testing | Discovered new exit (range 11) 28048 | -3/Testing | System corruption reached 30% 28051 | -3/Testing | X0-1V1 sent you to a vault 28297 | -3/Testing | Found Prototype Energy Cannon 28383 | -3/Testing | X0-1V1 sent you into danger 28424 | -3/Testing | Identified Potential Cannon 28509 | -3/Testing | Found Prototype Protection 28509 | -3/Testing | Identified SHELL Armor 28600 | -3/Testing | X0-1V1 vaporized surrounding terrain (radius 18) 28620 | -3/Testing | Spotted Striker 28718 | -3/Testing | Spotted PH-7TV5KB50S7 28786 | -3/Testing | Destroyed PH-7TV5KB50S7 29074 | -3/Testing | Core integrity restored by X0-1V1 (+225) 29524 | -3/Testing | Entered Research 29524 | -2/Research | Evolved 2 slots: Propulsion x1, Utility x1 29525 | -2/Research | Centrium Heavy Treads reconfigured into Item Mimic 29952 | -2/Research | X0-1V1 enhanced Transport squad support 30009 | -2/Research | X0-1V1 sent hostile Wasp (x2) 30136 | -2/Research | Discovered new exit (range 16) 30223 | -2/Research | Lost 5 allies 30234 | -2/Research | Garrison activated, responded to threat 30241 | -2/Research | Spotted B-90 Cyclops 30245 | -2/Research | X0-1V1 whisked you away to safety 30280 | -2/Research | X0-1V1 sent you to a vault 30309 | -2/Research | Discovered new exit (range 6) 30348 | -2/Research | Spotted B-90 Cyclops 30379 | -2/Research | Lost 3 allies 30388 | -2/Research | Assimilated Cyclops 9a with formatsys_high 30445 | -2/Research | Identified exit to Access 30445 | -2/Research | X0-1V1 revealed exit location to -1/Access 30483 | -2/Research | Assimilated Cyclops 9b with formatsys_high 30492 | -2/Research | Identified exit to Garrison 30524 | -2/Research | First assault squad dispatched 30564 | -2/Research | Lost 3 allies 30697 | -2/Research | Found Exp. Thermal Shield 30789 | -2/Research | Discovered new exit (range 5) 30821 | -2/Research | Identified exit to Garrison 30829 | -2/Research | Entered Garrison 30829 | -2/Garrison | Accompanied by 3 allies 30849 | -2/Garrison | Spotted B-90 Cyclops 30855 | -2/Garrison | Assimilated Cyclops 9c with formatsys_high 30863 | -2/Garrison | Triggered checkpoint 30903 | -2/Garrison | Garrison Relay disabled 30931 | -2/Garrison | X0-1V1 mutated your Propulsion slot to Power slot 30956 | -2/Garrison | Expanded RIF knowledge: Zone Cloak 30959 | -2/Garrison | Lost 4 allies 31095 | -2/Garrison | Triggered checkpoint 31105 | -2/Garrison | Triggered checkpoint 31118 | -2/Garrison | Assimilated Cyclops 9d with formatsys_high 31158 | -2/Garrison | Lost 7 allies 31291 | -2/Garrison | Garrison Relay disabled 31337 | -2/Garrison | Triggered checkpoint 31376 | -2/Garrison | Garrison Relay disabled 31419 | -2/Garrison | Identified exit to Research 31419 | -2/Garrison | X0-1V1 revealed exit location to -2/Research 31481 | -2/Garrison | Triggered checkpoint 31484 | -2/Garrison | Discovered exit to Research (range 14) 31732 | -2/Garrison | Garrison Relay disabled 31800 | -2/Garrison | Discovered exit to Research (range 13) 31983 | -2/Garrison | Triggered checkpoint 32010 | -2/Garrison | Weapon slot count temporarily expanded by X0-1V1 (+2) 32097 | -2/Garrison | Triggered checkpoint 32132 | -2/Garrison | Garrison Relay disabled 32296 | -2/Garrison | Build established: Botlord-Gunner 32347 | -2/Garrison | Entered Research 32347 | -2/Research | Accompanied by 7 allies 32624 | -2/Research | Watched by a mysterious "MATRIX" hacker 32681 | -2/Research | Lost 3 allies 32781 | -2/Research | Lost 6 allies 32847 | -2/Research | First assault squad dispatched 32989 | -2/Research | Build established: Botlord-Mutant 33198 | -2/Research | Central database locked down 33467 | -2/Research | Spotted B-90 Cyclops 33469 | -2/Research | Assimilated Cyclops 9e with formatsys_high 33474 | -2/Research | X0-1V1 upgraded ally (x1) 33479 | -2/Research | Spotted Striker 33480 | -2/Research | Cargo convoy interrupted 33480 | -2/Research | Spotted Striker 33486 | -2/Research | Allies destroyed Striker 33496 | -2/Research | Allies destroyed Striker 33552 | -2/Research | Lost 3 allies 33629 | -2/Research | Spotted B-90 Cyclops 33633 | -2/Research | Assimilated Cyclops 9f with formatsys_high 33704 | -2/Research | System corruption reached 10% 34038 | -2/Research | X0-1V1 redirected Transport squads to designated parking area 34192 | -2/Research | X0-1V1 added 0b10 threat records associated with you (considerable) 34332 | -2/Research | X0-1V1 downgraded hostiles (x1) 34340 | -2/Research | System corruption reached 30% 34388 | -2/Research | X0-1V1 sent you to a vault 34390 | -2/Research | Found Prototype Special Weapon 34390 | -2/Research | Identified Exp. Remote Datajack 34398 | -2/Research | Found Alien Artifact 34408 | -2/Research | Found Prototype Special Weapon 34408 | -2/Research | Identified Gui. Remote Datajack 35034 | -2/Research | Identified exit to Garrison 35034 | -2/Research | Entered Garrison 35064 | -2/Garrison | Triggered checkpoint 35095 | -2/Garrison | Garrison Relay disabled 35280 | -2/Garrison | Assimilated Cyclops 9g with formatsys_high 35322 | -2/Garrison | Destroyed 12 combat bots 35444 | -2/Garrison | Discovered exit to Access (range 10) 35504 | -2/Garrison | Triggered checkpoint 35548 | -2/Garrison | Garrison Relay disabled 35684 | -2/Garrison | Identified Terrabomb 35684 | -2/Garrison | Used Terrabomb 35692 | -2/Garrison | Triggered checkpoint 35768 | -2/Garrison | Discovered exit to Access (range 8) 35813 | -2/Garrison | Entered Access 35813 | -1/Access | Accompanied by 1 ally 35813 | -1/Access | Evolved 2 slots: Power x1, Propulsion x1 36063 | -1/Access | First assault squad dispatched 36098 | -1/Access | Spotted B-99 Colossus 36106 | -1/Access | Assimilated Colossus 10a with formatsys_high 36148 | -1/Access | Garrison activated, responded to threat 36400 | -1/Access | X0-1V1 sent you to a vault 36567 | -1/Access | High security lockdown imminent 36647 | -1/Access | High security lockdown engaged 36762 | -1/Access | Lost 4 allies 36785 | -1/Access | Assimilated Heavy ARC 10a with formatsys_deep 36820 | -1/Access | Lost 5 allies 36856 | -1/Access | X0-1V1 whisked you away to safety 37056 | -1/Access | X0-1V1 destroyed Energy Cycler 37056 | -1/Access | Energy Cycler disabled 37102 | -1/Access | Spotted Executioner 37105 | -1/Access | Destroyed Striker 37111 | -1/Access | Destroyed Executioner 37135 | -1/Access | Destroyed 11 combat bots 37180 | -1/Access | Spotted Striker 37184 | -1/Access | Spotted Striker 37185 | -1/Access | Spotted Striker 37185 | -1/Access | Spotted Striker 37185 | -1/Access | Spotted Executioner 37190 | -1/Access | Destroyed Striker 37195 | -1/Access | Garrison activated, responded to threat 37199 | -1/Access | System corruption reached 10% 37214 | -1/Access | Assimilated Striker with formatsys_high 37219 | -1/Access | Assimilated Striker with formatsys_high 37229 | -1/Access | Destroyed 8 combat bots 37229 | -1/Access | P-80 Master assimilated allied Striker 37258 | -1/Access | Core integrity fell below 50% 37259 | -1/Access | X0-1V1 downgraded hostiles (x1) 37273 | -1/Access | Spotted B-99 Colossus 37274 | -1/Access | Autoassimilated Colossus 10b with RIF 37287 | -1/Access | Spotted B-99 Colossus 37288 | -1/Access | Spotted B-99 Colossus 37294 | -1/Access | Lost 3 allies 37299 | -1/Access | Identified exit to Command 37299 | -1/Access | X0-1V1 revealed exit location to -1/Command 37328 | -1/Access | Lost 21 parts (5p6n9u1w) 37375 | -1/Access | Spotted Striker 37375 | -1/Access | Spotted Executioner 37382 | -1/Access | Discovered new exit (range 6) 37384 | *** | Escaped! Last Messages --------------- 37376_ M-36 Artificer unfolds itself. 37377_ Slammed into K-01 Serf. 37377_ I-47 Archangel distress signal jammed. 37377_ Slug penetrates I-47 Archangel. 37377_ Slug penetrates Striker. 37377_ Penetrated by Slug. 37378_ X0-1V1 imagines sitting ducks. B-74 Champion suddenly freezes. Striker suddenly freezes. 37378_ I-47 Archangel distress signal jammed. 37381_ G-73 Enforcer destroyed. 37381_ X0-1V1: "One less obstacle for my toy on its journey to the highest levels of glorious entertainment." 37381_ I-47 Archangel distress signal jammed. 37382_ The Access Shell folds into the floor. 37382_ EXIT=FOUND 37383_ I-47 Archangel distress signal jammed. 37383_ Slug penetrates Sealed Heavy Doors. 37383_ I-47 Archangel distress signal jammed. [Achievement: Chaotic Teddy Bear] Map ----- +----------------------------------------------------+ | ?????# # ! #???????#########"##### %# | | ?????# # #???????+ # | | ?????# + ] #???????# % + | | ?????# # #???????# % % / # ! | | ?????# # """Y""" #???????# # | | ?????# # """"""" #???????+ ]] #?# | | ?????# ##############???????????+#### % ] % #?? | | ##???# #????????????????????????????#% %#?? | | #???# #????????????????????????????# ### | | ##### #????????????????????????????# = | | ! #????????????????????????????# %! % | | #????????????????????????????# | | #????????????????????????????## ########## | | ] #?????????????????????????????# #????????? | | ]] #?????????????????????????????#" #????????? | | ] #?????????????????????????????#% ########?? | | #?????????????????????????????# ## ? | | #?????????????????????????????# ## ? | | #?????????????????????????????# %## " | | #?????????????????????###?????# ##""" | | #???#######??########## #######b=## """ | | ### #?? "??" p ## " | | ??# ### "??" l E## | | ??# #"" "??" i## ? | | ??# % "??" % ## ! ? | | " "??" "@ gb ########?? | | # "??" "" b #???###### | | # "??" % #???# | | ?######## "??" #???# #### | | ????????? "??" """ """ #???# #### | | ?????????? "??" """T""" #???# ## # | | ???????????#######??########## ####### #???# # | | ?????????????????????????????###?????# #??## # | | ?????????????????????????????????????# #### # | | ??????????????????#################### # % | | ??????????????????# """""""""" #![# | | ??????????????????# ""T""" !*%! = | | ??????????????????# ==# = | | ???#######????????# % # [ T | | ?### #????????# % !=" %* "" | | ## #* #????????# = " "" | | % #????????# = | %" % | | ## #????????# " = | | # ]= ##???????# ## " | | # % #?????#### " | | ## !* ##?????# " | | # #??????# =% ""######## | | ### #??????# ######""" ! "" #??????? | | ??#" ##?????# #??? % " ##??????? | | # [ "#?????# #?? " / " #??????? | +----------------------------------------------------+ Best States ------------- Heat Dissipation 167 Energy Generation 99 Energy Capacity 2140 Matter Stores 1127 Matter Capacity 1200 Sight Range 22 Terrain Scan Density 10 Base Temperature (-) 200 Armor Coverage 1800 Resistance: KI 30 Resistance: TH 10 Evasion (%) 70 Targeting Accuracy 12 Core Analysis 8 Recoil Reduction 6 Offensive Hacking 10 Defensive Hacking 10 Relay Coupler Types 7 Relay Coupler Value 517 Authchip Count 1 Item Schematics ----------------- Exp. Flexi-carbon Leg | -3/Testing | Archive Prc. Energy Filter | -3/Testing | Archive Robot Schematics ------------------ M-28 Smith | -7/Factory | Hacked R-06 Scavenger | -3/Testing | Archive A-15 Conveyor | -3/Testing | Archive Fabricated ------------ Nothing Repaired ---------- Imp. Light Cannon | 53% | -10/Materials Helical Railgun | 48% | -4/Factory | Broken Studied --------- Hvy. Particle Cannon | -8/Materials | Hacked Carbon-fiber Leg | -8/Materials | Hacked Titanium Leg | -8/Materials | Hacked Remote Datajack | -7/Factory | Hacked Gauss Rifle | -6/Factory | Hacked Hvy. Siege Treads | -4/Factory | Hacked Adv. Remote Datajack | -3/Research | Hacked Biometal Heavy Treads | -2/Research | Hacked Med. Treads | -2/Research | Hacked Enh. Nova Cannon | -2/Research | Hacked Alien Tech Used ----------------- Terrabomb Achievements -------------- Chaos Is Inevitable Chaotic Teddy Bear Out Of My Way Strength In Numbers Challenges ------------ None Game ------ Seed FocalCompanionRefractor Manual? 0 Play Time 05:00:08 Cumulative 876.4 hours Start 2026.06.23 @ 10:53:41 End 2026.06.23 @ 18:49:55 Sessions 3 Manual Loads 0 Difficulty Rogue Special Mode None Game No. 431 Rogue 431 Adventurer 0 Explorer 0 Win Type 0 Total 77 Types 50/5/8/4/1/1/3/3/1/1 Lore% 94 Gallery% 84 Achievement% 77 Wizard Run 0 Options --------- Layout 0 ASCII 0 Keyboard 1 Movement Numpad Keybinds 0 Fullscreen 2 Font 18/SmallcapsGlow Map View 76x50 Zoom Use 0% Tactical HUD 1 Map Filters NONE Filters NONE Steam 1 RUN: 0667aa81-ca8f-44d8-a227-b8b89a443b41